Workbook

Sheet General Information
O1: Version 3 | P1: 2023-09-06

Sheet Instructions
A1: 1. Selection of Fellowship Duration and autopopulation of UQ Earmarked HDR Scholarship
A2: The main tab for data entry is the IE24 BUDGET tool. To start the data entry process, select the duration of your fellowship in cell C5.
A3: Based on the duration selected, the calculation will autopopulate with UQ Earmarked PhD Scholarship contributions (only 3 year fellowships will be eligible to receive a UQ PhD Scholarship).
N5: NAVIGATION:
N6: =A1 -> 1. Selection of Fellowship Duration and autopopulation of UQ Earmarked HDR Scholarship
N7: =A21 -> 2. Selection of Salary Level and Contribution Amounts
N8: =A44 -> 3. Expenditure Data Entry
N9: =A68 -> 4. Fellow's Salary Level Check
N10: =A92 -> 5. Budget Check
N11: =A110 -> 6. F2 and F3 - Budget Justification
N12: =A143 -> 7. Export into the Application
N13: =A173 -> 8. Troubleshooting and Additional Resources
A21: 2. Selection of Salary Level and Contribution Amounts
A22: Select the Academic Level for the Fellow's salary and values for contributions into the row highlighted in blue (see below).
A44: 3. Expenditure Data Entry
A45: Budget expenses go into the central section. Please provide detailed labels in the second column (B), based on the example
A46: provided in the first two lines (it is ok to overwrite them).
A68: 4. Fellow's Salary Level Check
A69: If Fellow's salary does not match contributions from funding sources, the cell will be highlighted in red (when there is a salary gap), or yellow (if you have allocated more than is needed for the proposed academic level).
A70: Salary Gap means you need to allocate more funding towards the salary, and this is expected to be covered by local cash or industry partner cash.
A71: Salary Gap cash contribution is to be entered against the fellowship salary, under the appropriate source of contribution (underlined below).
N74: NAVIGATION:
N75: =A1 -> 1. Selection of Fellowship Duration and autopopulation of UQ Earmarked HDR Scholarship
N76: =A21 -> 2. Selection of Salary Level and Contribution Amounts
N77: =A44 -> 3. Expenditure Data Entry
N78: =A68 -> 4. Fellow's Salary Level Check
N79: =A92 -> 5. Budget Check
N80: =A110 -> 6. F2 and F3 - Budget Justification
N81: =A143 -> 7. Export into the Application
N82: =A173 -> 8. Troubleshooting and Additional Resources
A92: 5. Budget Check
A93: Budget check row and column are created to help you spot any inconsistencies in the budget. If the budget is balanced, both
A94: budget checks will be green. If a cell is highlighted in red, you have not allocated enough funding for the expenses. If a cell
A95: is yellow, you have more funding available than the expense and should balance the budget.
A110: 6. F2 and F3 - Budget Justification
A111: F2 and F3 tabs will populate values from the BUDGET tool tab automatically, you only need to enter the justification for each
A112: expense category. Please note that this table will group contributions from all industry partners together, so you might have
A113: to delineate contributions from each partner in the justification section. These tables can be entered directly into the UQ Template for the relevant sections.
A114: Template for the relevant sections.
N128: NAVIGATION:
N129: =A1 -> 1. Selection of Fellowship Duration and autopopulation of UQ Earmarked HDR Scholarship
N130: =A21 -> 2. Selection of Salary Level and Contribution Amounts
N131: =A44 -> 3. Expenditure Data Entry
N132: =A68 -> 4. Fellow's Salary Level Check
N133: =A92 -> 5. Budget Check
N134: =A110 -> 6. F2 and F3 - Budget Justification
N135: =A143 -> 7. Export into the Application
N136: =A173 -> 8. Troubleshooting and Additional Resources
A143: 7. Export into the Application
A144: RMS Data Entry table is a ready source for you to transfer the amounts into the RMS budget, to make sure it is aligned with
A145: your detailed expenditure and justification sections. F2 and F3 sections will populate values automatically, but you
A146: will need to enter justification into the relevant column. When you are done, press CTRL+SHIFT+H to run the algorithm that
A147: will hide rows that do not have any values. Then you can export these tables into the UQ Template. If you change
A148: anything, you will need to select the entire sheet and select 'Unhide' from the right-click menu, and then re-run the algorithm
A149: to collapse the rows again.
A173: 8. Troubleshooting and Additional Resources
A174: Please refer to the General Information tab for further information.
A176: If you make any changes, and need to re-export F2 and F3 sections for the application, please select all working columns in F2 | N176: NAVIGATION:
A177: and F3 tabs and select 'Unhide' in the right-click menu. Once you have finished making changes, press CTRL+SHIFT+H to run the | N177: =A1 -> 1. Selection of Fellowship Duration and autopopulation of UQ Earmarked HDR Scholarship
A178: macros again to format these sections for export. | N178: =A21 -> 2. Selection of Salary Level and Contribution Amounts
N179: =A44 -> 3. Expenditure Data Entry
A180: Please use the UQ Academic and UQ Professional Staff tabs as a reference guide to calculate correct salary values for any | N180: =A68 -> 4. Fellow's Salary Level Check
A181: additional personnel. You can change the FTE/Number of hours for the formula to calculate the salary value. | N181: =A92 -> 5. Budget Check
N182: =A110 -> 6. F2 and F3 - Budget Justification
A183: If you need a reference for Fellow's salary gap for different Academic Levels of employment, please refer to the Salary Gap | N183: =A143 -> 7. Export into the Application
A184: Calculations tab. | N184: =A173 -> 8. Troubleshooting and Additional Resources
A186: If something isn't working correctly, please reach out to the Research Office at ARCFellowships@research.uq.edu.au for assistance.

Sheet IE24 BUDGET tool
A1: Year 1 | E1: UQ Contributions | I1: Key Industry Partner | K1: Other Industry Partners | M1: Total (red highlight - salary gap; yellow highlight - overspend) | N1: UQ cash total | O1: Industry Parters cash totals | P1: Industry Parters in-kind totals | AB1: Stop Insert/Delete
D2: Australian Research Council | E2: UQ Graduate School Stipend (cash) | F2: UQ Central Support (cash) | G2: UQ Local Sources (cash) | H2: In-kind | I2: Cash | J2: In-kind | K2: Cash | L2: In-kind | S2: RMS Data Entry | AB2: =1 -> 1
A3: Year 1 | C3: Fellow salary | D3: 112897 | S3: YEAR 1 | AB3: 1
C4: Project costs | D4: 50000 | E4: =_xlfn.XLOOKUP($C$5,List!$B$3:$B$5,List!$C$3:$C$5,0) -> 32192 | T4: ARC | U4: Administering Organisation | W4: Key Industry Partner | Y4: Other Industry Partners | AB4: 1
B5: Duration of Fellowship | C5: 3 Years | M5: Fellow salary | Q5: Salary Gap | T5: Cash | U5: Cash | V5: In-kind | W5: Cash | X5: In-kind | Y5: Cash | Z5: In-kind | AB5: 1
B6: Fellow [INSER YOUR NAME] | C6: D02 | D6: =D3 -> 112897 | M6: =(D6+G6+I6+K6) -> 112897 | N6: =ROUNDUP(_xlfn.XLOOKUP(C6,'Salary Gap Calculations'!C7:C25,'Salary Gap Calculations'!D7:D25, "Check Salary Code"),0) -> 222524 | Q6: =M6-N6 -> -109627 | S6: Personnel | T6: =D3 -> 112897 | U6: =E6+F6+G6 -> 0 | V6: - | W6: =I6 -> 0 | X6: - | Y6: =K53 -> 0 | Z6: - | AB6: 1
B7: Personnel Other | M7: Project costs | S7: Project costs | T7: =D4 -> 50000 | U7: =E44+F44+G44 -> 32192 | V7: =H44 -> 0 | W7: =I44 -> 0 | X7: =J44 -> 0 | Y7: =K91 -> 0 | Z7: =L44 -> 0 | AB7: 1
B8: =_xlfn.XLOOKUP(E4,List!$C$3:$C$5,List!$D$3:$D$5) -> Earmarked PhD Stipend | E8: =_xlfn.XLOOKUP(B8,List!$D$3:$D$5,List!$C$3:$C$5,"0") -> 32192 | M8: =SUM(D8:L8) -> 32192 | N8: =E8+F8+G8 -> 32192 | O8: =I8+K8 -> 0 | P8: =J8+L8 -> 0 | S8: YEAR 2 | AB8: 1
B9: Format: Research Position (eg. Postdoctoal Research Associate), Appointment Level (A-E), FTE, incl. 30% Oncosts | M9: =SUM(D9:L9) -> 0 | N9: 0 | O9: =I9+K9 -> 0 | P9: =J9+L9 -> 0 | T9: ARC | U9: Administering Organisation | W9: Key Industry Partner | Y9: Other Industry Partners | AB9: 1
B10: Format: Professional Staffer (eg. Research Assistant), Appointment Level (HEW), FTE or Hours, incl. 30% Oncosts | M10: 0 | N10: 0 | O10: 0 | P10: 0 | T10: Cash | U10: Cash | V10: In-kind | W10: Cash | X10: In-kind | Y10: Cash | Z10: In-kind | AB10: 1
M11: 0 | N11: 0 | O11: 0 | P11: 0 | S11: Personnel | T11: =D50 -> 112897 | U11: =F53+G53 -> 0 | V11: - | W11: =I53 -> 0 | X11: - | Z11: - | AB11: 1
M12: 0 | N12: 0 | O12: 0 | P12: 0 | S12: Project costs | T12: =D51 -> 50000 | U12: =E91+F91+G91 -> 32192 | V12: =H91 -> 0 | W12: =I91 -> 0 | X12: =J91 -> 0 | Y12: =K91 -> 0 | Z12: =L91 -> 0 | AB12: 1
M13: 0 | N13: 0 | O13: 0 | P13: 0 | S13: YEAR 3 | AB13: 1
M14: 0 | N14: 0 | O14: 0 | P14: 0 | T14: ARC | U14: Administering Organisation | W14: Key Industry Partner | Y14: Other Industry Partners | AB14: 1
M15: 0 | N15: 0 | O15: 0 | P15: 0 | T15: Cash | U15: Cash | V15: In-kind | W15: Cash | X15: In-kind | Y15: Cash | Z15: In-kind | AB15: 1
B16: Travel | M16: 0 | N16: 0 | O16: 0 | P16: 0 | S16: Personnel | T16: =D97 -> 112897 | U16: =F100+G100 -> 0 | V16: - | W16: =I100 -> 0 | X16: - | Y16: =K100 -> 0 | Z16: - | AB16: 1
B17: Format: Conference Name and number of people attending if applicable (flights, accom, daily allowance...) number of days | M17: 0 | N17: 0 | O17: 0 | P17: 0 | S17: Project costs | T17: =D98 -> 50000 | U17: =E91+F91+G91 -> 32192 | V17: =H138 -> 0 | W17: =I138 -> 0 | X17: =J138 -> 0 | Y17: =K138 -> 0 | Z17: =L138 -> 0 | AB17: 1
M18: 0 | N18: 0 | O18: 0 | P18: 0 | AB18: 1
M19: 0 | N19: 0 | O19: 0 | P19: 0 | S19: NAVIGATION: | AB19: 1
M20: 0 | N20: 0 | O20: 0 | P20: 0 | S20: Year 1 | AB20: 1
M21: 0 | N21: 0 | O21: 0 | P21: 0 | S21: Year 2 | AB21: 1
B22: Field Research | M22: 0 | N22: 0 | O22: 0 | P22: 0 | S22: Year 3 | AB22: 1
B23: Format: Field work descriptor (eg. site, #days) number of people attending (if applicable) | M23: 0 | N23: 0 | O23: 0 | P23: 0 | AB23: 1
M24: 0 | N24: 0 | O24: 0 | P24: 0 | AB24: 1
M25: 0 | N25: 0 | O25: 0 | P25: 0 | AB25: 1
M26: 0 | N26: 0 | O26: 0 | P26: 0 | AB26: 1
M27: 0 | N27: 0 | O27: 0 | P27: 0 | AB27: 1
B28: Equipment | M28: 0 | N28: 0 | O28: 0 | P28: 0 | AB28: 1
M29: 0 | N29: 0 | O29: 0 | P29: 0 | AB29: 1
M30: 0 | N30: 0 | O30: 0 | P30: 0 | AB30: 1
M31: 0 | N31: 0 | O31: 0 | P31: 0 | AB31: 1
M32: 0 | N32: 0 | O32: 0 | P32: 0 | AB32: 1
B33: Maintenance | M33: 0 | N33: 0 | O33: 0 | P33: 0 | AB33: 1
M34: 0 | N34: 0 | O34: 0 | P34: 0 | AB34: 1
M35: 0 | N35: 0 | O35: 0 | P35: 0 | AB35: 1
M36: 0 | N36: 0 | O36: 0 | P36: 0 | AB36: 1
M37: 0 | N37: 0 | O37: 0 | P37: 0 | AB37: 1
B38: Other | M38: 0 | N38: 0 | O38: 0 | P38: 0 | AB38: 1
M39: 0 | N39: 0 | O39: 0 | P39: 0 | AB39: 1
M40: 0 | N40: 0 | O40: 0 | P40: 0 | AB40: 1
M41: 0 | N41: 0 | O41: 0 | P41: 0 | AB41: 1
M42: 0 | N42: 0 | O42: 0 | P42: 0 | AB42: 1
A43: Total Project expenses | D43: =SUM(D7:D42) -> 0 | E43: =SUM(E6:E42) -> 32192 | F43: 0 | G43: 0 | H43: 0 | I43: 0 | J43: 0 | K43: 0 | L43: 0 | M43: =SUM(M8:M42) -> 32192 | N43: 32192 | O43: 0 | P43: 0 | AB43: 1
A44: Total Project contributions | D44: =D4 -> 50000 | E44: 32192 | F44: 0 | G44: 0 | H44: 0 | I44: 0 | J44: 0 | K44: 0 | L44: 0 | M44: =SUM(D44:L44)-SUM(E6:L6) -> 82192 | N44: 32192 | O44: 0 | P44: 0 | AB44: 1
A45: Project Budget check (red highlight - deficit; yellow highlight - contributions and expenses do not match) | D45: =D44-D43 -> 50000 | E45: =E44-E43 -> 0 | F45: 0 | G45: 0 | H45: 0 | I45: 0 | J45: 0 | K45: 0 | L45: 0 | M45: =M44-M43 -> 50000 | N45: 0 | O45: 0 | P45: 0 | AB45: 1
N46: 0 | O46: 0 | P46: 0 | AB46: 1
N47: 0 | O47: 0 | P47: 0 | AB47: 1
A48: Year 2 | E48: UQ Contributions | I48: Key Industry Partner | K48: Other Industry Partners | M48: Total (red highlight - salary gap; yellow highlight - overspend) | AB48: 1
D49: Australian Research Council | E49: UQ Graduate School Stipend (cash) | F49: UQ Central Support (cash) | G49: UQ Local Sources (cash) | H49: In-kind | I49: Cash | J49: In-kind | K49: Cash | L49: In-kind | AB49: 1
A50: Year 2 | C50: Fellow salary | D50: 112897 | N50: 0 | O50: 0 | P50: 0 | AB50: 1
C51: Project costs | D51: 50000 | E51: =_xlfn.XLOOKUP($C$5,List!$B$3:$B$5,List!$C$3:$C$5,0) -> 32192 | N51: 32192 | O51: 0 | P51: 0 | AB51: 1
M52: Fellow salary | N52: 0 | O52: 0 | P52: 0 | Q52: Salary Gap | AB52: 1
B53: =B6 -> Fellow [INSER YOUR NAME] | C53: D03 | D53: =D50 -> 112897 | M53: =D53+G53+I53+K53 -> 112897 | N53: =ROUNDUP(_xlfn.XLOOKUP(C53,'Salary Gap Calculations'!C7:C25,'Salary Gap Calculations'!D7:D25, "Check Salary Code"),0) -> 229821 | O53: 0 | P53: 0 | Q53: =M53-N53 -> -116924 | AB53: 1
B54: Personnel Other | M54: Project costs | N54: 0 | O54: 0 | P54: 0 | AB54: 1
B55: =_xlfn.XLOOKUP(E51,List!$C$3:$C$5,List!$D$3:$D$5) -> Earmarked PhD Stipend | E55: =_xlfn.XLOOKUP(B55,List!$D$3:$D$5,List!$C$3:$C$5,"0") -> 32192 | M55: =SUM(D55:L55) -> 32192 | N55: 32192 | O55: 0 | P55: 0 | AB55: 1
B56: Format: Research Position (eg. Postdoctoal Research Associate), Appointment Level (A-E), FTE, incl. 30% Oncosts | M56: =SUM(D56:L56) -> 0 | N56: 0 | O56: 0 | P56: 0 | AB56: 1
B57: Format: Professional Staffer (eg. Research Assistant), Appointment Level (HEW), FTE or Hours, incl. 30% Oncosts | M57: 0 | N57: 0 | O57: 0 | P57: 0 | S57: NAVIGATION: | AB57: 1
M58: 0 | N58: 0 | O58: 0 | P58: 0 | S58: Year 1 | AB58: 1
M59: 0 | N59: 0 | O59: 0 | P59: 0 | S59: Year 2 | AB59: 1
M60: 0 | N60: 0 | O60: 0 | P60: 0 | S60: Year 3 | AB60: 1
M61: 0 | N61: 0 | O61: 0 | P61: 0 | AB61: 1
M62: 0 | N62: 0 | O62: 0 | P62: 0 | AB62: 1
B63: Travel | M63: 0 | N63: 0 | O63: 0 | P63: 0 | AB63: 1
B64: Format: Conference Name and number of people attending if applicable (flights, accom, daily allowance...) number of days | M64: 0 | N64: 0 | O64: 0 | P64: 0 | AB64: 1
M65: 0 | N65: 0 | O65: 0 | P65: 0 | AB65: 1
M66: 0 | N66: 0 | O66: 0 | P66: 0 | AB66: 1
M67: 0 | N67: 0 | O67: 0 | P67: 0 | AB67: 1
M68: 0 | N68: 0 | O68: 0 | P68: 0 | AB68: 1
B69: Field Research | M69: 0 | N69: 0 | O69: 0 | P69: 0 | AB69: 1
B70: Format: Field work descriptor (eg. site, #days) number of people attending (if applicable) | M70: 0 | N70: 0 | O70: 0 | P70: 0 | AB70: 1
M71: 0 | N71: 0 | O71: 0 | P71: 0 | AB71: 1
M72: 0 | N72: 0 | O72: 0 | P72: 0 | AB72: 1
M73: 0 | N73: =E73+F73+G73 -> 0 | O73: =I73+K73 -> 0 | P73: =J73+L73 -> 0 | AB73: 1
M74: 0 | N74: 0 | O74: 0 | P74: 0 | AB74: 1
B75: Equipment | M75: 0 | N75: 0 | O75: 0 | P75: 0 | AB75: 1
M76: 0 | N76: 0 | O76: 0 | P76: 0 | AB76: 1
M77: 0 | N77: 0 | O77: 0 | P77: 0 | AB77: 1
M78: 0 | N78: 0 | O78: 0 | P78: 0 | AB78: 1
M79: 0 | N79: 0 | O79: 0 | P79: 0 | AB79: 1
B80: Maintenance | M80: 0 | N80: 0 | O80: 0 | P80: 0 | AB80: 1
M81: 0 | N81: 0 | O81: 0 | P81: 0 | AB81: 1
M82: 0 | N82: 0 | O82: 0 | P82: 0 | AB82: 1
M83: 0 | N83: 0 | O83: 0 | P83: 0 | AB83: 1
M84: 0 | N84: 0 | O84: 0 | P84: 0 | AB84: 1
B85: Other | M85: 0 | N85: 0 | O85: 0 | P85: 0 | AB85: 1
B86: 1 | M86: 0 | N86: 0 | O86: 0 | P86: 0 | AB86: 1
B87: 2 | M87: 0 | N87: 0 | O87: 0 | P87: 0 | AB87: 1
B88: 3 | M88: 0 | N88: 0 | O88: 0 | P88: 0 | AB88: 1
M89: 0 | N89: 0 | O89: 0 | P89: 0 | AB89: 1
A90: Total Project expenses | D90: =SUM(D54:D89) -> 0 | E90: =SUM(E53:E89) -> 32192 | F90: 0 | G90: 0 | H90: 0 | I90: 0 | J90: 0 | K90: 0 | L90: 0 | M90: =SUM(M55:M89) -> 32192 | N90: 32192 | O90: 0 | P90: 0 | AB90: 1
A91: Total Project contributions | D91: =D51 -> 50000 | E91: 32192 | F91: 0 | G91: 0 | H91: 0 | I91: 0 | J91: 0 | K91: 0 | L91: 0 | M91: =SUM(D91:L91)-SUM(E53:L53) -> 82192 | N91: 32192 | O91: 0 | P91: 0 | AB91: 1
A92: Project Budget check (red highlight - deficit; yellow highlight - contributions and expenses do not match) | D92: =D91-D90 -> 50000 | E92: =E91-E90 -> 0 | F92: =F91-F90 -> 0 | G92: =G91-G90 -> 0 | H92: =H91-H90 -> 0 | I92: =I91-I90 -> 0 | J92: =J91-J90 -> 0 | K92: =K91-K90 -> 0 | L92: =L91-L90 -> 0 | M92: =M91-M90 -> 50000 | N92: 0 | O92: 0 | P92: 0 | AB92: 1
N93: 0 | O93: 0 | P93: 0 | AB93: 1
N94: 0 | O94: 0 | P94: 0 | AB94: 1
A95: Year 3 | E95: UQ Contributions | I95: Key Industry Partner | K95: Other Industry Partners | M95: Total (red highlight - salary gap; yellow highlight - overspend) | AB95: 1
D96: Australian Research Council | E96: UQ Graduate School Stipend (cash) | F96: UQ Central Support (cash) | G96: UQ Local Sources (cash) | H96: In-kind | I96: Cash | J96: In-kind | K96: Cash | L96: In-kind | AB96: 1
A97: Year 3 | C97: Fellow salary | D97: 112897 | N97: 0 | O97: 0 | P97: 0 | AB97: 1
C98: Project costs | D98: 50000 | E98: =_xlfn.XLOOKUP($C$5,List!$B$3:$B$5,List!$C$3:$C$5,0) -> 32192 | N98: 32192 | O98: 0 | P98: 0 | AB98: 1
M99: Fellow salary | N99: 0 | O99: 0 | P99: 0 | Q99: Salary Gap | AB99: 1
B100: =B6 -> Fellow [INSER YOUR NAME] | C100: D04 | D100: =D97 -> 112897 | M100: =D100+G100+I100+K100 -> 112897 | N100: =_xlfn.XLOOKUP(C100,'Salary Gap Calculations'!C7:C25,'Salary Gap Calculations'!D7:D25, "Check Salary Code") -> 237116.3389 | O100: 0 | P100: 0 | Q100: =M100-N100 -> -124219.3389 | AB100: 1
B101: Personnel Other | M101: Project costs | N101: 0 | O101: 0 | P101: 0 | AB101: 1
B102: =_xlfn.XLOOKUP(E98,List!$C$3:$C$5,List!$D$3:$D$5) -> Earmarked PhD Stipend | E102: =_xlfn.XLOOKUP(B102,List!$D$3:$D$5,List!$C$3:$C$5,"0") -> 32192 | M102: =SUM(D102:L102) -> 32192 | N102: 32192 | O102: 0 | P102: 0 | AB102: 1
B103: Format: Research Position (eg. Postdoctoal Research Associate), Appointment Level (A-E), FTE, incl. 30% Oncosts | M103: =SUM(D103:L103) -> 0 | N103: 0 | O103: 0 | P103: 0 | AB103: 1
B104: Format: Professional Staffer (eg. Research Assistant), Appointment Level (HEW), FTE or Hours, incl. 30% Oncosts | M104: 0 | N104: 0 | O104: 0 | P104: 0 | S104: NAVIGATION: | AB104: 1
M105: 0 | N105: 0 | O105: 0 | P105: 0 | S105: Year 1 | AB105: 1
M106: 0 | N106: 0 | O106: 0 | P106: 0 | S106: Year 2 | AB106: 1
M107: 0 | N107: 0 | O107: 0 | P107: 0 | S107: Year 3 | AB107: 1
M108: 0 | N108: 0 | O108: 0 | P108: 0 | AB108: 1
M109: 0 | N109: 0 | O109: 0 | P109: 0 | AB109: 1
B110: Travel | M110: 0 | N110: 0 | O110: 0 | P110: 0 | AB110: 1
B111: Format: Conference Name and number of people attending if applicable (flights, accom, daily allowance...) number of days | M111: 0 | N111: 0 | O111: 0 | P111: 0 | AB111: 1
M112: 0 | N112: 0 | O112: 0 | P112: 0 | AB112: 1
M113: 0 | N113: 0 | O113: 0 | P113: 0 | AB113: 1
M114: 0 | N114: 0 | O114: 0 | P114: 0 | AB114: 1
M115: 0 | N115: 0 | O115: 0 | P115: 0 | AB115: 1
B116: Field Research | M116: 0 | N116: 0 | O116: 0 | P116: 0 | AB116: 1
B117: Format: Field work descriptor (eg. site, #days) number of people attending (if applicable) | M117: 0 | N117: 0 | O117: 0 | P117: 0 | AB117: 1
M118: 0 | N118: 0 | O118: 0 | P118: 0 | AB118: 1
M119: 0 | N119: 0 | O119: 0 | P119: 0 | AB119: 1
M120: 0 | N120: 0 | O120: 0 | P120: 0 | AB120: 1
M121: 0 | N121: 0 | O121: 0 | P121: 0 | AB121: 1
B122: Equipment | M122: 0 | N122: 0 | O122: 0 | P122: 0 | AB122: 1
M123: 0 | N123: 0 | O123: 0 | P123: 0 | AB123: 1
M124: 0 | N124: 0 | O124: 0 | P124: 0 | AB124: 1
M125: 0 | N125: 0 | O125: 0 | P125: 0 | AB125: 1
M126: 0 | N126: 0 | O126: 0 | P126: 0 | AB126: 1
B127: Maintenance | M127: 0 | N127: 0 | O127: 0 | P127: 0 | AB127: 1
M128: 0 | N128: 0 | O128: 0 | P128: 0 | AB128: 1
M129: 0 | N129: 0 | O129: 0 | P129: 0 | AB129: 1
M130: 0 | N130: 0 | O130: 0 | P130: 0 | AB130: 1
M131: 0 | N131: 0 | O131: 0 | P131: 0 | AB131: 1
B132: Other | M132: 0 | N132: 0 | O132: 0 | P132: 0 | AB132: 1
M133: 0 | N133: 0 | O133: 0 | P133: 0 | AB133: 1
M134: 0 | N134: 0 | O134: 0 | P134: 0 | AB134: 1
M135: 0 | N135: 0 | O135: 0 | P135: 0 | AB135: 1
M136: 0 | N136: 0 | O136: 0 | P136: 0 | AB136: 1
A137: Total Project expenses | D137: =SUM(D101:D136) -> 0 | E137: =SUM(E100:E136) -> 32192 | F137: =SUM(F100:F136) -> 0 | G137: =SUM(G100:G136) -> 0 | H137: =SUM(H100:H136) -> 0 | I137: =SUM(I100:I136) -> 0 | J137: =SUM(J100:J136) -> 0 | K137: =SUM(K100:K136) -> 0 | L137: =SUM(L100:L136) -> 0 | M137: =SUM(M102:M136) -> 32192 | N137: =E137+F137+G137 -> 32192 | O137: =I137+K137 -> 0 | P137: =J137+L137 -> 0 | AB137: 1
A138: Total Project contributions | D138: =D98 -> 50000 | E138: 32192 | F138: 0 | G138: 0 | H138: 0 | I138: 0 | J138: 0 | K138: 0 | L138: 0 | M138: =SUM(D138:L138)-SUM(E100:L100) -> 82192 | N138: 32192 | O138: 0 | P138: 0 | AB138: 1
A139: Project Budget check (red highlight - deficit; yellow highlight - contributions and expenses do not match) | D139: =D138-D137 -> 50000 | E139: =E138-E137 -> 0 | F139: =F138-F137 -> 0 | G139: =G138-G137 -> 0 | H139: =H138-H137 -> 0 | I139: =I138-I137 -> 0 | J139: =J138-J137 -> 0 | K139: =K138-K137 -> 0 | L139: =L138-L137 -> 0 | M139: =M138-M137 -> 50000 | N139: 0 | O139: 0 | P139: 0 | AB139: 1

Sheet F2_ARC Contributions
A1: Year 1
A3: Description | B3: Cost | C3: Justification | E3: CLICK CTRL+SHIFT+H TO RUN MACROS BEFORE EXPORTING
A4: ='IE24 BUDGET tool'!B6 -> Fellow [INSER YOUR NAME] | B4: ='IE24 BUDGET tool'!D3 -> 112897
A5: Personnel Other | B5: Total: | C5: =SUM(B6:B13) -> 0.001
A6: ='IE24 BUDGET tool'!B8 -> Earmarked PhD Stipend | B6: ='IE24 BUDGET tool'!D8 -> 0 | C6: Justification should explain both the cost and the need for the project.
A7: ='IE24 BUDGET tool'!B9 -> Format: Research Position (eg. Postdoctoal Research Associate), Appointment Level (A-E), FTE, incl. 30% Oncosts | B7: ='IE24 BUDGET tool'!D9 -> 0 | C7: Justification should explain both the cost and the need for the project. | E7: NAVIGATION:
A8: ='IE24 BUDGET tool'!B10 -> Format: Professional Staffer (eg. Research Assistant), Appointment Level (HEW), FTE or Hours, incl. 30% Oncosts | B8: ='IE24 BUDGET tool'!D10 -> 0 | E8: Year 1
A9: ='IE24 BUDGET tool'!B11 -> 0 | B9: ='IE24 BUDGET tool'!D11 -> 0 | E9: Year 2
A10: ='IE24 BUDGET tool'!B12 -> 0 | B10: ='IE24 BUDGET tool'!D12 -> 0 | E10: Year 3
A11: ='IE24 BUDGET tool'!B13 -> 0 | B11: ='IE24 BUDGET tool'!D13 -> 0
A12: ='IE24 BUDGET tool'!B14 -> 0 | B12: ='IE24 BUDGET tool'!D14 -> 0
A13: N/A | B13: 0.001
A14: Travel | B14: Total: | C14: =B15+B16+B17+B18+B19 -> 0
A15: ='IE24 BUDGET tool'!B17 -> Format: Conference Name and number of people attending if applicable (flights, accom, daily allowance...) number of days | B15: ='IE24 BUDGET tool'!D17 -> 0
A16: ='IE24 BUDGET tool'!B18 -> 0 | B16: ='IE24 BUDGET tool'!D18 -> 0
A17: ='IE24 BUDGET tool'!B19 -> 0 | B17: ='IE24 BUDGET tool'!D19 -> 0
A18: ='IE24 BUDGET tool'!B20 -> 0 | B18: ='IE24 BUDGET tool'!D20 -> 0
A19: ='IE24 BUDGET tool'!B21 -> 0 | B19: ='IE24 BUDGET tool'!D21 -> 0
A20: N/A | B20: 0.001
A21: Field Research | B21: Total: | C21: =B22+B23+B24+B25+B26 -> 0
A22: ='IE24 BUDGET tool'!B23 -> Format: Field work descriptor (eg. site, #days) number of people attending (if applicable) | B22: ='IE24 BUDGET tool'!D23 -> 0
A23: ='IE24 BUDGET tool'!B24 -> 0 | B23: ='IE24 BUDGET tool'!D24 -> 0
A24: ='IE24 BUDGET tool'!B25 -> 0 | B24: ='IE24 BUDGET tool'!D25 -> 0
A25: ='IE24 BUDGET tool'!B26 -> 0 | B25: ='IE24 BUDGET tool'!D26 -> 0
A26: ='IE24 BUDGET tool'!B27 -> 0 | B26: ='IE24 BUDGET tool'!D27 -> 0
A27: N/A | B27: 0.001
A28: Equipment | B28: Total: | C28: =B29+B30+B31+B32 -> 0
A29: ='IE24 BUDGET tool'!B29 -> 0 | B29: ='IE24 BUDGET tool'!D29 -> 0
A30: ='IE24 BUDGET tool'!B30 -> 0 | B30: ='IE24 BUDGET tool'!D30 -> 0
A31: ='IE24 BUDGET tool'!B31 -> 0 | B31: ='IE24 BUDGET tool'!D31 -> 0
A32: ='IE24 BUDGET tool'!B32 -> 0 | B32: ='IE24 BUDGET tool'!D32 -> 0
A33: N/A | B33: 0.001
A34: Maintenance | B34: Total: | C34: =B35+B36+B37+B38 -> 0
A35: ='IE24 BUDGET tool'!B34 -> 0 | B35: ='IE24 BUDGET tool'!D34 -> 0
A36: ='IE24 BUDGET tool'!B35 -> 0 | B36: ='IE24 BUDGET tool'!D35 -> 0
A37: ='IE24 BUDGET tool'!B36 -> 0 | B37: ='IE24 BUDGET tool'!D36 -> 0
A38: ='IE24 BUDGET tool'!B37 -> 0 | B38: ='IE24 BUDGET tool'!D37 -> 0
A39: N/A | B39: 0.001
A40: Other | B40: Total: | C40: =B41+B42+B43+B44 -> 0
A41: ='IE24 BUDGET tool'!B39 -> 0 | B41: ='IE24 BUDGET tool'!D39 -> 0
A42: ='IE24 BUDGET tool'!B40 -> 0 | B42: ='IE24 BUDGET tool'!D40 -> 0
A43: ='IE24 BUDGET tool'!B41 -> 0 | B43: ='IE24 BUDGET tool'!D41 -> 0
A44: ='IE24 BUDGET tool'!B42 -> 0 | B44: ='IE24 BUDGET tool'!D42 -> 0
A45: N/A | B45: 0.001
A47: Year 2
A49: Description | B49: Cost | C49: Justification
A50: =A4 -> Fellow [INSER YOUR NAME] | B50: ='IE24 BUDGET tool'!D53 -> 112897
A51: Personnel Other | B51: Total: | C51: =B52+B53+B54+B55+B56+B57+B58+B59 -> 0
A52: ='IE24 BUDGET tool'!B56 -> Format: Research Position (eg. Postdoctoal Research Associate), Appointment Level (A-E), FTE, incl. 30% Oncosts | B52: ='IE24 BUDGET tool'!D55 -> 0
A53: ='IE24 BUDGET tool'!B57 -> Format: Professional Staffer (eg. Research Assistant), Appointment Level (HEW), FTE or Hours, incl. 30% Oncosts | B53: ='IE24 BUDGET tool'!D56 -> 0 | E53: NAVIGATION:
A54: ='IE24 BUDGET tool'!#REF! ->  | B54: ='IE24 BUDGET tool'!D57 -> 0 | E54: Year 1
A55: ='IE24 BUDGET tool'!B58 -> 0 | B55: ='IE24 BUDGET tool'!D58 -> 0 | E55: Year 2
A56: ='IE24 BUDGET tool'!B59 -> 0 | B56: ='IE24 BUDGET tool'!D59 -> 0 | E56: Year 3
A57: ='IE24 BUDGET tool'!B60 -> 0 | B57: ='IE24 BUDGET tool'!D60 -> 0
A58: ='IE24 BUDGET tool'!B61 -> 0 | B58: ='IE24 BUDGET tool'!D61 -> 0
A59: ='IE24 BUDGET tool'!B55 -> Earmarked PhD Stipend | B59: ='IE24 BUDGET tool'!D62 -> 0
A60: N/A | B60: 0.001
A61: Travel | B61: Total: | C61: =B62+B63+B64+B65+B66 -> 0
A62: ='IE24 BUDGET tool'!B64 -> Format: Conference Name and number of people attending if applicable (flights, accom, daily allowance...) number of days | B62: ='IE24 BUDGET tool'!D64 -> 0
A63: ='IE24 BUDGET tool'!B65 -> 0 | B63: ='IE24 BUDGET tool'!D65 -> 0
A64: ='IE24 BUDGET tool'!B66 -> 0 | B64: ='IE24 BUDGET tool'!D66 -> 0
A65: ='IE24 BUDGET tool'!B67 -> 0 | B65: ='IE24 BUDGET tool'!D67 -> 0
A66: ='IE24 BUDGET tool'!B68 -> 0 | B66: ='IE24 BUDGET tool'!D68 -> 0
A67: N/A | B67: 0.001
A68: Field Research | B68: Total: | C68: =B69+B70+B71+B72+B73 -> 0
A69: ='IE24 BUDGET tool'!B70 -> Format: Field work descriptor (eg. site, #days) number of people attending (if applicable) | B69: ='IE24 BUDGET tool'!D70 -> 0
A70: ='IE24 BUDGET tool'!B71 -> 0 | B70: ='IE24 BUDGET tool'!D71 -> 0
A71: ='IE24 BUDGET tool'!B72 -> 0 | B71: ='IE24 BUDGET tool'!D72 -> 0
A72: ='IE24 BUDGET tool'!B73 -> 0 | B72: ='IE24 BUDGET tool'!D73 -> 0
A73: ='IE24 BUDGET tool'!B74 -> 0 | B73: ='IE24 BUDGET tool'!D74 -> 0
A74: N/A | B74: 0.001
A75: Equipment | B75: Total: | C75: =B76+B77+B78+B79 -> 0
A76: ='IE24 BUDGET tool'!B76 -> 0 | B76: ='IE24 BUDGET tool'!D76 -> 0
A77: ='IE24 BUDGET tool'!B77 -> 0 | B77: ='IE24 BUDGET tool'!D77 -> 0
A78: ='IE24 BUDGET tool'!B78 -> 0 | B78: ='IE24 BUDGET tool'!D78 -> 0
A79: ='IE24 BUDGET tool'!B79 -> 0 | B79: ='IE24 BUDGET tool'!D79 -> 0
A80: N/A | B80: 0.001
A81: Maintenance | B81: Total: | C81: =B82+B83+B84+B85 -> 0
A82: ='IE24 BUDGET tool'!B81 -> 0 | B82: ='IE24 BUDGET tool'!D81 -> 0
A83: ='IE24 BUDGET tool'!B82 -> 0 | B83: ='IE24 BUDGET tool'!D82 -> 0
A84: ='IE24 BUDGET tool'!B83 -> 0 | B84: ='IE24 BUDGET tool'!D83 -> 0
A85: ='IE24 BUDGET tool'!B84 -> 0 | B85: ='IE24 BUDGET tool'!D84 -> 0
A86: N/A | B86: 0.001
A87: Other | B87: Total: | C87: =B88+B89+B90+B91 -> 0
A88: ='IE24 BUDGET tool'!B86 -> 1 | B88: ='IE24 BUDGET tool'!D86 -> 0
A89: ='IE24 BUDGET tool'!B87 -> 2 | B89: ='IE24 BUDGET tool'!D87 -> 0
A90: ='IE24 BUDGET tool'!B88 -> 3 | B90: ='IE24 BUDGET tool'!D88 -> 0
A91: ='IE24 BUDGET tool'!B89 -> 0 | B91: ='IE24 BUDGET tool'!D89 -> 0
A92: N/A | B92: 0.001
A94: Year 3
A96: Description | B96: Cost | C96: Justification
A97: =A4 -> Fellow [INSER YOUR NAME] | B97: ='IE24 BUDGET tool'!D100 -> 112897
A98: Personnel Other | B98: Total: | C98: =B99+B100+B101+B102+B103+B104+B105+B106 -> 0
A99: ='IE24 BUDGET tool'!B103 -> Format: Research Position (eg. Postdoctoal Research Associate), Appointment Level (A-E), FTE, incl. 30% Oncosts | B99: ='IE24 BUDGET tool'!D102 -> 0
A100: ='IE24 BUDGET tool'!B104 -> Format: Professional Staffer (eg. Research Assistant), Appointment Level (HEW), FTE or Hours, incl. 30% Oncosts | B100: ='IE24 BUDGET tool'!D103 -> 0 | E100: NAVIGATION:
A101: ='IE24 BUDGET tool'!#REF! ->  | B101: ='IE24 BUDGET tool'!D104 -> 0 | E101: Year 1
A102: ='IE24 BUDGET tool'!B105 -> 0 | B102: ='IE24 BUDGET tool'!D105 -> 0 | E102: Year 2
A103: ='IE24 BUDGET tool'!B106 -> 0 | B103: ='IE24 BUDGET tool'!D106 -> 0 | E103: Year 3
A104: ='IE24 BUDGET tool'!B107 -> 0 | B104: ='IE24 BUDGET tool'!D107 -> 0
A105: ='IE24 BUDGET tool'!B108 -> 0 | B105: ='IE24 BUDGET tool'!D108 -> 0
A106: ='IE24 BUDGET tool'!B102 -> Earmarked PhD Stipend | B106: ='IE24 BUDGET tool'!D109 -> 0
A107: N/A | B107: 0.001
A108: Travel | B108: Total: | C108: =B109+B110+B111+B112+B113 -> 0
A109: ='IE24 BUDGET tool'!B111 -> Format: Conference Name and number of people attending if applicable (flights, accom, daily allowance...) number of days | B109: ='IE24 BUDGET tool'!D111 -> 0
A110: ='IE24 BUDGET tool'!B112 -> 0 | B110: ='IE24 BUDGET tool'!D112 -> 0
A111: ='IE24 BUDGET tool'!B113 -> 0 | B111: ='IE24 BUDGET tool'!D113 -> 0
A112: ='IE24 BUDGET tool'!B114 -> 0 | B112: ='IE24 BUDGET tool'!D114 -> 0
A113: ='IE24 BUDGET tool'!B115 -> 0 | B113: ='IE24 BUDGET tool'!D115 -> 0
A114: N/A | B114: 0.001
A115: Field Research | B115: Total: | C115: =B116+B117+B118+B119+B120 -> 0
A116: ='IE24 BUDGET tool'!B117 -> Format: Field work descriptor (eg. site, #days) number of people attending (if applicable) | B116: ='IE24 BUDGET tool'!D117 -> 0
A117: ='IE24 BUDGET tool'!B118 -> 0 | B117: ='IE24 BUDGET tool'!D118 -> 0
A118: ='IE24 BUDGET tool'!B119 -> 0 | B118: ='IE24 BUDGET tool'!D119 -> 0
A119: ='IE24 BUDGET tool'!B120 -> 0 | B119: ='IE24 BUDGET tool'!D120 -> 0
A120: ='IE24 BUDGET tool'!B121 -> 0 | B120: ='IE24 BUDGET tool'!D121 -> 0
A121: N/A | B121: 0.001
A122: Equipment | B122: Total: | C122: =B123+B124+B125+B126 -> 0
A123: ='IE24 BUDGET tool'!B123 -> 0 | B123: ='IE24 BUDGET tool'!D123 -> 0
A124: ='IE24 BUDGET tool'!B124 -> 0 | B124: ='IE24 BUDGET tool'!D124 -> 0
A125: ='IE24 BUDGET tool'!B125 -> 0 | B125: ='IE24 BUDGET tool'!D125 -> 0
A126: ='IE24 BUDGET tool'!B126 -> 0 | B126: ='IE24 BUDGET tool'!D126 -> 0
A127: N/A | B127: 0.001
A128: Maintenance | B128: Total: | C128: =B129+B130+B131+B132 -> 0
A129: ='IE24 BUDGET tool'!B128 -> 0 | B129: ='IE24 BUDGET tool'!D128 -> 0
A130: ='IE24 BUDGET tool'!B129 -> 0 | B130: ='IE24 BUDGET tool'!D129 -> 0
A131: ='IE24 BUDGET tool'!B130 -> 0 | B131: ='IE24 BUDGET tool'!D130 -> 0
A132: ='IE24 BUDGET tool'!B131 -> 0 | B132: ='IE24 BUDGET tool'!D131 -> 0
A133: N/A | B133: 0.001
A134: Other | B134: Total: | C134: =B135+B136+B137+B138 -> 0
A135: ='IE24 BUDGET tool'!B133 -> 0 | B135: ='IE24 BUDGET tool'!D133 -> 0
A136: ='IE24 BUDGET tool'!B134 -> 0 | B136: ='IE24 BUDGET tool'!D134 -> 0
A137: ='IE24 BUDGET tool'!B135 -> 0 | B137: ='IE24 BUDGET tool'!D135 -> 0
A138: ='IE24 BUDGET tool'!B136 -> 0 | B138: ='IE24 BUDGET tool'!D136 -> 0
A139: N/A | B139: 0.001

Sheet F3_Non-ARC Contributions
A1: Year 1
A3: Description | B3: Cost | C3: Justification | E3: CLICK CTRL+SHIFT+H TO RUN THE ALGORITHM BEFORE EXPORTING
A4: ='IE24 BUDGET tool'!B6 -> Fellow [INSER YOUR NAME]
A5: UQ | B5: ='IE24 BUDGET tool'!F6+'IE24 BUDGET tool'!G6 -> 0
A6: Industry Partner | B6: ='IE24 BUDGET tool'!I6+'IE24 BUDGET tool'!K6 -> 0
A7: Personnel Other
A8: UQ
A9: Cash | B9: Total: | C9: =SUM(B10:B13) -> 32192 | E9: NAVIGATION:
A10: ='IE24 BUDGET tool'!B8 -> Earmarked PhD Stipend | B10: ='IE24 BUDGET tool'!N8 -> 32192 | E10: Year 1
A11: ='IE24 BUDGET tool'!B9 -> Format: Research Position (eg. Postdoctoal Research Associate), Appointment Level (A-E), FTE, incl. 30% Oncosts | B11: ='IE24 BUDGET tool'!N9 -> 0 | E11: Year 2
A12: ='IE24 BUDGET tool'!B10 -> Format: Professional Staffer (eg. Research Assistant), Appointment Level (HEW), FTE or Hours, incl. 30% Oncosts | B12: ='IE24 BUDGET tool'!N10 -> 0 | E12: Year 3
A13: ='IE24 BUDGET tool'!B11 -> 0 | B13: ='IE24 BUDGET tool'!N11 -> 0
A14: N/A | B14: 0.001
A15: In-kind | B15: Total: | C15: =SUM(B16:B21) -> 0.001
A16: ='IE24 BUDGET tool'!B8 -> Earmarked PhD Stipend | B16: ='IE24 BUDGET tool'!H8 -> 0
A17: ='IE24 BUDGET tool'!B9 -> Format: Research Position (eg. Postdoctoal Research Associate), Appointment Level (A-E), FTE, incl. 30% Oncosts | B17: ='IE24 BUDGET tool'!H9 -> 0
A18: ='IE24 BUDGET tool'!B10 -> Format: Professional Staffer (eg. Research Assistant), Appointment Level (HEW), FTE or Hours, incl. 30% Oncosts | B18: ='IE24 BUDGET tool'!H10 -> 0
A19: ='IE24 BUDGET tool'!B11 -> 0 | B19: ='IE24 BUDGET tool'!H11 -> 0
A20: N/A | B20: 0.001
A21: Industry Partner
A22: Cash | B22: Total: | C22: =SUM(B23:B26) -> 0
A23: ='IE24 BUDGET tool'!B8 -> Earmarked PhD Stipend | B23: ='IE24 BUDGET tool'!O8 -> 0
A24: ='IE24 BUDGET tool'!B9 -> Format: Research Position (eg. Postdoctoal Research Associate), Appointment Level (A-E), FTE, incl. 30% Oncosts | B24: ='IE24 BUDGET tool'!O9 -> 0
A25: ='IE24 BUDGET tool'!B10 -> Format: Professional Staffer (eg. Research Assistant), Appointment Level (HEW), FTE or Hours, incl. 30% Oncosts | B25: ='IE24 BUDGET tool'!O10 -> 0
A26: ='IE24 BUDGET tool'!B11 -> 0 | B26: ='IE24 BUDGET tool'!O11 -> 0
A27: ='IE24 BUDGET tool'!B12 -> 0 | B27: 0.001
A28: In-kind | B28: Total: | C28: =SUM(B29:B32) -> 0
A29: ='IE24 BUDGET tool'!B8 -> Earmarked PhD Stipend | B29: ='IE24 BUDGET tool'!P8 -> 0
A30: ='IE24 BUDGET tool'!B9 -> Format: Research Position (eg. Postdoctoal Research Associate), Appointment Level (A-E), FTE, incl. 30% Oncosts | B30: ='IE24 BUDGET tool'!P9 -> 0
A31: ='IE24 BUDGET tool'!B10 -> Format: Professional Staffer (eg. Research Assistant), Appointment Level (HEW), FTE or Hours, incl. 30% Oncosts | B31: ='IE24 BUDGET tool'!P10 -> 0
A32: ='IE24 BUDGET tool'!B11 -> 0 | B32: ='IE24 BUDGET tool'!P11 -> 0
A33: N/A | B33: 0.001
A34: Travel
A35: UQ
A36: Cash | B36: Total: | C36: =SUM(B37:B40) -> 0
A37: ='IE24 BUDGET tool'!B17 -> Format: Conference Name and number of people attending if applicable (flights, accom, daily allowance...) number of days | B37: ='IE24 BUDGET tool'!N17 -> 0
A38: ='IE24 BUDGET tool'!B18 -> 0 | B38: ='IE24 BUDGET tool'!N18 -> 0
A39: ='IE24 BUDGET tool'!B19 -> 0 | B39: ='IE24 BUDGET tool'!N19 -> 0
A40: ='IE24 BUDGET tool'!B20 -> 0 | B40: ='IE24 BUDGET tool'!N20 -> 0
A41: N/A | B41: 0.001
A42: Industry Partner
A43: Cash | B43: Total: | C43: =SUM(B44:B47) -> 0
A44: ='IE24 BUDGET tool'!B17 -> Format: Conference Name and number of people attending if applicable (flights, accom, daily allowance...) number of days | B44: ='IE24 BUDGET tool'!O17 -> 0
A45: ='IE24 BUDGET tool'!B18 -> 0 | B45: ='IE24 BUDGET tool'!O18 -> 0
A46: ='IE24 BUDGET tool'!B19 -> 0 | B46: ='IE24 BUDGET tool'!O19 -> 0
A47: ='IE24 BUDGET tool'!B20 -> 0 | B47: ='IE24 BUDGET tool'!O20 -> 0
A48: N/A | B48: 0.001
A49: Field Research
A50: UQ
A51: Cash | B51: Total: | C51: =SUM(B52:B55) -> 0
A52: ='IE24 BUDGET tool'!B23 -> Format: Field work descriptor (eg. site, #days) number of people attending (if applicable) | B52: ='IE24 BUDGET tool'!N23 -> 0
A53: ='IE24 BUDGET tool'!B24 -> 0 | B53: ='IE24 BUDGET tool'!N24 -> 0
A54: ='IE24 BUDGET tool'!B25 -> 0 | B54: ='IE24 BUDGET tool'!N25 -> 0
A55: ='IE24 BUDGET tool'!B26 -> 0 | B55: ='IE24 BUDGET tool'!N26 -> 0
A56: N/A | B56: 0.001
A57: Industry Partner
A58: Cash | B58: Total: | C58: =SUM(B59:B62) -> 0
A59: ='IE24 BUDGET tool'!B23 -> Format: Field work descriptor (eg. site, #days) number of people attending (if applicable) | B59: ='IE24 BUDGET tool'!O23 -> 0
A60: ='IE24 BUDGET tool'!B24 -> 0 | B60: ='IE24 BUDGET tool'!O24 -> 0
A61: ='IE24 BUDGET tool'!B25 -> 0 | B61: ='IE24 BUDGET tool'!O25 -> 0
A62: ='IE24 BUDGET tool'!B26 -> 0 | B62: ='IE24 BUDGET tool'!O26 -> 0
A63: N/A | B63: 0.001
A64: Equipment
A65: UQ
A66: Cash | B66: Total: | C66: =SUM(B67:B70) -> 0
A67: ='IE24 BUDGET tool'!B29 -> 0 | B67: ='IE24 BUDGET tool'!N29 -> 0
A68: ='IE24 BUDGET tool'!B30 -> 0 | B68: ='IE24 BUDGET tool'!N30 -> 0
A69: ='IE24 BUDGET tool'!B31 -> 0 | B69: ='IE24 BUDGET tool'!N31 -> 0
A70: ='IE24 BUDGET tool'!B32 -> 0 | B70: ='IE24 BUDGET tool'!N32 -> 0
A71: N/A | B71: 0.001
A72: Industry Partner
A73: Cash | B73: Total: | C73: =SUM(B74:B77) -> 0
A74: ='IE24 BUDGET tool'!B29 -> 0 | B74: ='IE24 BUDGET tool'!O29 -> 0
A75: ='IE24 BUDGET tool'!B30 -> 0 | B75: ='IE24 BUDGET tool'!O30 -> 0
A76: ='IE24 BUDGET tool'!B31 -> 0 | B76: ='IE24 BUDGET tool'!O31 -> 0
A77: ='IE24 BUDGET tool'!B32 -> 0 | B77: ='IE24 BUDGET tool'!O32 -> 0
A78: N/A | B78: 0.001
A79: Maintenance
A80: UQ
A81: Cash | B81: Total: | C81: =SUM(B82:B85) -> 0
A82: ='IE24 BUDGET tool'!B34 -> 0 | B82: ='IE24 BUDGET tool'!N34 -> 0
A83: ='IE24 BUDGET tool'!B35 -> 0 | B83: ='IE24 BUDGET tool'!N35 -> 0
A84: ='IE24 BUDGET tool'!B36 -> 0 | B84: ='IE24 BUDGET tool'!N36 -> 0
A85: ='IE24 BUDGET tool'!B37 -> 0 | B85: ='IE24 BUDGET tool'!N37 -> 0
A86: N/A | B86: 0.001
A87: Industry Partner
A88: Cash | B88: Total: | C88: =SUM(B89:B92) -> 0
A89: ='IE24 BUDGET tool'!B34 -> 0 | B89: ='IE24 BUDGET tool'!O34 -> 0
A90: ='IE24 BUDGET tool'!B35 -> 0 | B90: ='IE24 BUDGET tool'!O35 -> 0
A91: ='IE24 BUDGET tool'!B36 -> 0 | B91: ='IE24 BUDGET tool'!O36 -> 0
A92: ='IE24 BUDGET tool'!B37 -> 0 | B92: ='IE24 BUDGET tool'!O37 -> 0
A93: N/A | B93: 0.001
A94: Other
A95: UQ
A96: Cash | B96: Total: | C96: =SUM(B97:B100) -> 0
A97: ='IE24 BUDGET tool'!B39 -> 0 | B97: ='IE24 BUDGET tool'!N39 -> 0
A98: ='IE24 BUDGET tool'!B40 -> 0 | B98: ='IE24 BUDGET tool'!N40 -> 0
A99: ='IE24 BUDGET tool'!B41 -> 0 | B99: ='IE24 BUDGET tool'!N41 -> 0
A100: ='IE24 BUDGET tool'!B42 -> 0 | B100: ='IE24 BUDGET tool'!N42 -> 0
A101: N/A | B101: 0.001
A102: Industry Partner
A103: Cash | B103: Total: | C103: =SUM(B104:B107) -> 0
A104: ='IE24 BUDGET tool'!B39 -> 0 | B104: ='IE24 BUDGET tool'!O39 -> 0
A105: ='IE24 BUDGET tool'!B40 -> 0 | B105: ='IE24 BUDGET tool'!O40 -> 0
A106: ='IE24 BUDGET tool'!B41 -> 0 | B106: ='IE24 BUDGET tool'!O41 -> 0
A107: ='IE24 BUDGET tool'!B42 -> 0 | B107: ='IE24 BUDGET tool'!O42 -> 0
A108: N/A | B108: 0.001
A110: Year 2
E111: NAVIGATION:
A112: Description | B112: Cost | C112: Justification | E112: Year 1
A113: =A4 -> Fellow [INSER YOUR NAME] | E113: Year 2
A114: UQ | B114: ='IE24 BUDGET tool'!F53+'IE24 BUDGET tool'!G53 -> 0 | E114: Year 3
A115: Industry Partner | B115: ='IE24 BUDGET tool'!I53+'IE24 BUDGET tool'!K53 -> 0
A116: Personnel Other
A117: UQ
A118: Cash | B118: Total: | C118: =SUM(B119:B122) -> 32192
A119: ='IE24 BUDGET tool'!B55 -> Earmarked PhD Stipend | B119: ='IE24 BUDGET tool'!N55 -> 32192
A120: ='IE24 BUDGET tool'!B56 -> Format: Research Position (eg. Postdoctoal Research Associate), Appointment Level (A-E), FTE, incl. 30% Oncosts | B120: ='IE24 BUDGET tool'!N56 -> 0
A121: ='IE24 BUDGET tool'!B57 -> Format: Professional Staffer (eg. Research Assistant), Appointment Level (HEW), FTE or Hours, incl. 30% Oncosts | B121: ='IE24 BUDGET tool'!N57 -> 0
A122: ='IE24 BUDGET tool'!B58 -> 0 | B122: ='IE24 BUDGET tool'!N58 -> 0
A123: N/A | B123: 0.001
A124: In-kind | B124: Total: | C124: =SUM(B125:B130) -> 0.001
A125: ='IE24 BUDGET tool'!B55 -> Earmarked PhD Stipend | B125: ='IE24 BUDGET tool'!H55 -> 0
A126: ='IE24 BUDGET tool'!B56 -> Format: Research Position (eg. Postdoctoal Research Associate), Appointment Level (A-E), FTE, incl. 30% Oncosts | B126: ='IE24 BUDGET tool'!H56 -> 0
A127: ='IE24 BUDGET tool'!B57 -> Format: Professional Staffer (eg. Research Assistant), Appointment Level (HEW), FTE or Hours, incl. 30% Oncosts | B127: ='IE24 BUDGET tool'!H57 -> 0
A128: ='IE24 BUDGET tool'!B58 -> 0 | B128: ='IE24 BUDGET tool'!H58 -> 0
A129: N/A | B129: 0.001
A130: Industry Partner
A131: Cash | B131: Total: | C131: =SUM(B132:B135) -> 0
A132: ='IE24 BUDGET tool'!B55 -> Earmarked PhD Stipend | B132: ='IE24 BUDGET tool'!O55 -> 0
A133: ='IE24 BUDGET tool'!B56 -> Format: Research Position (eg. Postdoctoal Research Associate), Appointment Level (A-E), FTE, incl. 30% Oncosts | B133: ='IE24 BUDGET tool'!O56 -> 0
A134: ='IE24 BUDGET tool'!B57 -> Format: Professional Staffer (eg. Research Assistant), Appointment Level (HEW), FTE or Hours, incl. 30% Oncosts | B134: ='IE24 BUDGET tool'!O57 -> 0
A135: ='IE24 BUDGET tool'!B58 -> 0 | B135: ='IE24 BUDGET tool'!O58 -> 0
A136: N/A | B136: 0.001
A137: In-kind | B137: Total: | C137: =SUM(B138:B141) -> 0
A138: ='IE24 BUDGET tool'!B55 -> Earmarked PhD Stipend | B138: ='IE24 BUDGET tool'!P55 -> 0
A139: ='IE24 BUDGET tool'!B56 -> Format: Research Position (eg. Postdoctoal Research Associate), Appointment Level (A-E), FTE, incl. 30% Oncosts | B139: ='IE24 BUDGET tool'!P56 -> 0
A140: ='IE24 BUDGET tool'!B57 -> Format: Professional Staffer (eg. Research Assistant), Appointment Level (HEW), FTE or Hours, incl. 30% Oncosts | B140: ='IE24 BUDGET tool'!P57 -> 0
A141: ='IE24 BUDGET tool'!B58 -> 0 | B141: ='IE24 BUDGET tool'!P58 -> 0
A142: N/A | B142: 0.001
A143: Travel
A144: UQ
A145: Cash | B145: Total: | C145: =SUM(B146:B149) -> 0
A146: ='IE24 BUDGET tool'!B64 -> Format: Conference Name and number of people attending if applicable (flights, accom, daily allowance...) number of days | B146: ='IE24 BUDGET tool'!N64 -> 0
A147: ='IE24 BUDGET tool'!B65 -> 0 | B147: ='IE24 BUDGET tool'!N65 -> 0
A148: ='IE24 BUDGET tool'!B66 -> 0 | B148: ='IE24 BUDGET tool'!N66 -> 0
A149: ='IE24 BUDGET tool'!B67 -> 0 | B149: ='IE24 BUDGET tool'!N67 -> 0
A150: N/A | B150: 0.001
A151: Industry Partner
A152: Cash | B152: Total: | C152: =SUM(B153:B156) -> 0
A153: ='IE24 BUDGET tool'!B64 -> Format: Conference Name and number of people attending if applicable (flights, accom, daily allowance...) number of days | B153: ='IE24 BUDGET tool'!O64 -> 0
A154: ='IE24 BUDGET tool'!B65 -> 0 | B154: ='IE24 BUDGET tool'!O65 -> 0
A155: ='IE24 BUDGET tool'!B66 -> 0 | B155: ='IE24 BUDGET tool'!O66 -> 0
A156: ='IE24 BUDGET tool'!B67 -> 0 | B156: ='IE24 BUDGET tool'!O67 -> 0
A157: N/A | B157: 0.001
A158: Field Research
A159: UQ
A160: Cash | B160: Total: | C160: =SUM(B161:B164) -> 0
A161: ='IE24 BUDGET tool'!B70 -> Format: Field work descriptor (eg. site, #days) number of people attending (if applicable) | B161: ='IE24 BUDGET tool'!N70 -> 0
A162: ='IE24 BUDGET tool'!B71 -> 0 | B162: ='IE24 BUDGET tool'!N71 -> 0
A163: ='IE24 BUDGET tool'!B72 -> 0 | B163: ='IE24 BUDGET tool'!N72 -> 0
A164: ='IE24 BUDGET tool'!B73 -> 0 | B164: ='IE24 BUDGET tool'!N73 -> 0
A165: N/A | B165: 0.001
A166: Industry Partner
A167: Cash | B167: Total: | C167: =SUM(B168:B171) -> 0
A168: ='IE24 BUDGET tool'!B70 -> Format: Field work descriptor (eg. site, #days) number of people attending (if applicable) | B168: ='IE24 BUDGET tool'!O70 -> 0
A169: ='IE24 BUDGET tool'!B71 -> 0 | B169: ='IE24 BUDGET tool'!O71 -> 0
A170: ='IE24 BUDGET tool'!B72 -> 0 | B170: ='IE24 BUDGET tool'!O72 -> 0
A171: ='IE24 BUDGET tool'!B73 -> 0 | B171: ='IE24 BUDGET tool'!O73 -> 0
A172: N/A | B172: 0.001
A173: Equipment
A174: UQ
A175: Cash | B175: Total: | C175: =SUM(B176:B179) -> 0
A176: ='IE24 BUDGET tool'!B76 -> 0 | B176: ='IE24 BUDGET tool'!N76 -> 0
A177: ='IE24 BUDGET tool'!B77 -> 0 | B177: ='IE24 BUDGET tool'!N77 -> 0
A178: ='IE24 BUDGET tool'!B78 -> 0 | B178: ='IE24 BUDGET tool'!N78 -> 0
A179: ='IE24 BUDGET tool'!B79 -> 0 | B179: ='IE24 BUDGET tool'!N79 -> 0
A180: N/A | B180: 0.001
A181: Industry Partner
A182: Cash | B182: Total: | C182: =SUM(B183:B186) -> 0
A183: ='IE24 BUDGET tool'!B76 -> 0 | B183: ='IE24 BUDGET tool'!O76 -> 0
A184: ='IE24 BUDGET tool'!B77 -> 0 | B184: ='IE24 BUDGET tool'!O77 -> 0
A185: ='IE24 BUDGET tool'!B78 -> 0 | B185: ='IE24 BUDGET tool'!O78 -> 0
A186: ='IE24 BUDGET tool'!B79 -> 0 | B186: ='IE24 BUDGET tool'!O79 -> 0
A187: N/A | B187: 0.001
A188: Maintenance
A189: UQ
A190: Cash | B190: Total: | C190: =SUM(B191:B194) -> 0
A191: ='IE24 BUDGET tool'!B81 -> 0 | B191: ='IE24 BUDGET tool'!N81 -> 0
A192: ='IE24 BUDGET tool'!B82 -> 0 | B192: ='IE24 BUDGET tool'!N82 -> 0
A193: ='IE24 BUDGET tool'!B83 -> 0 | B193: ='IE24 BUDGET tool'!N83 -> 0
A194: ='IE24 BUDGET tool'!B84 -> 0 | B194: ='IE24 BUDGET tool'!N84 -> 0
A195: N/A | B195: 0.001
A196: Industry Partner
A197: Cash | B197: Total: | C197: =SUM(B198:B201) -> 0
A198: ='IE24 BUDGET tool'!B81 -> 0 | B198: ='IE24 BUDGET tool'!O81 -> 0
A199: ='IE24 BUDGET tool'!B82 -> 0 | B199: ='IE24 BUDGET tool'!O82 -> 0
A200: ='IE24 BUDGET tool'!B83 -> 0 | B200: ='IE24 BUDGET tool'!O83 -> 0
A201: ='IE24 BUDGET tool'!B84 -> 0 | B201: ='IE24 BUDGET tool'!O84 -> 0
A202: N/A | B202: 0.001
... 123 more rows

Sheet UQ Research Academic Staff
D2: FTE Fraction | E2: 1
B4: The University of Queensland - Research Academic Staff Salaries
B7: LEVEL | C7: CLASSIFICATION | E7: Salary Level | F7: Indicative 2024 Fraction FTE, including 30% On-Costs
A8: HDR Stipend | B8: HDR Stipend | C8: HDR Student | D8: $32,192 (2023) | E8: HDR
A9: Academic E1 | B9: E | C9: Professorial Res. Fellow (U Qld) NHMRC Senior Principal Res. Fellow (NHMRC) | E9: 01 | F9: =VLOOKUP(A9,'Admin-Salaries'!$A$1:$B$60,2,FALSE)*SalaryOncostsMultiplier*$E$2 -> 277243.7166
A10: Academic D4 | B10: D | C10: All the classifications in the following group can be appointed to any level of the adjacent salary range. Principal Res. Fellow (U Qld) NHMRC Principal Res. Fellow (NHMRC) | E10: 04 | F10: =VLOOKUP(A10,'Admin-Salaries'!$A$1:$B$60,2,FALSE)*SalaryOncostsMultiplier*$E$2 -> 237116.3389
A11: Academic D3 | E11: 03 | F11: =VLOOKUP(A11,'Admin-Salaries'!$A$1:$B$60,2,FALSE)*SalaryOncostsMultiplier*$E$2 -> 229820.5629
A12: Academic D2 | E12: 02 | F12: =VLOOKUP(A12,'Admin-Salaries'!$A$1:$B$60,2,FALSE)*SalaryOncostsMultiplier*$E$2 -> 222523.9159
A13: Academic D1 | E13: 01 | F13: =VLOOKUP(A13,'Admin-Salaries'!$A$1:$B$60,2,FALSE)*SalaryOncostsMultiplier*$E$2 -> 215228.1715
A14: Academic C6 | B14: C | C14: All the classifications in each of the following groups can be appointed to any level of the corresponding salary range. Senior Res. Fellow (U Qld) NHMRC Senior Res. Fellow (NHMRC) | E14: 06 | F14: =VLOOKUP(A14,'Admin-Salaries'!$A$1:$B$60,2,FALSE)*SalaryOncostsMultiplier*$E$2 -> 206108.4397
A15: Academic C5 | E15: 05 | F15: =VLOOKUP(A15,'Admin-Salaries'!$A$1:$B$60,2,FALSE)*SalaryOncostsMultiplier*$E$2 -> 200637.5222
A16: Academic C4 | E16: 04 | F16: =VLOOKUP(A16,'Admin-Salaries'!$A$1:$B$60,2,FALSE)*SalaryOncostsMultiplier*$E$2 -> 195166.5414
A17: Academic C3 | E17: 03 | F17: =VLOOKUP(A17,'Admin-Salaries'!$A$1:$B$60,2,FALSE)*SalaryOncostsMultiplier*$E$2 -> 189692.8842
A18: Academic C2 | E18: 02 | F18: =VLOOKUP(A18,'Admin-Salaries'!$A$1:$B$60,2,FALSE)*SalaryOncostsMultiplier*$E$2 -> 184221.9509
A19: Academic C1 | E19: 01 | F19: =VLOOKUP(A19,'Admin-Salaries'!$A$1:$B$60,2,FALSE)*SalaryOncostsMultiplier*$E$2 -> 178749.2598
A20: Academic B6 | B20: B | C20: All the classifications in each of the following groups can be appointed to any level of the corresponding salary range. | D20: ARC SENIOR RESEARCH ASSOCIATE | E20: 06 | F20: =VLOOKUP(A20,'Admin-Salaries'!$A$1:$B$60,2,FALSE)*SalaryOncostsMultiplier*$E$2 -> 173277.4714
A21: Academic B5 | C21: Res. Fellow (U Qld) | E21: 05 | F21: =VLOOKUP(A21,'Admin-Salaries'!$A$1:$B$60,2,FALSE)*SalaryOncostsMultiplier*$E$2 -> 167805.5245
A22: Academic B4 | C22: Senior Res. Officer Grade 1 (U Qld) | E22: 04 | F22: =VLOOKUP(A22,'Admin-Salaries'!$A$1:$B$60,2,FALSE)*SalaryOncostsMultiplier*$E$2 -> 162333.7678
A23: Academic B3 | C23: NHMRC Res. Fellow (NHMRC) | E23: 03 | F23: =VLOOKUP(A23,'Admin-Salaries'!$A$1:$B$60,2,FALSE)*SalaryOncostsMultiplier*$E$2 -> 156861.916
A24: Academic B2 | C24: NHMRC Senior Res. Officer (NHMRC) | E24: 02 | F24: =VLOOKUP(A24,'Admin-Salaries'!$A$1:$B$60,2,FALSE)*SalaryOncostsMultiplier*$E$2 -> 151390.0325
A25: Academic B1 | E25: 01 | F25: =VLOOKUP(A25,'Admin-Salaries'!$A$1:$B$60,2,FALSE)*SalaryOncostsMultiplier*$E$2 -> 145918.2757
A26: Academic A8 | B26: A | C26: All the classifications in each of the following groups can be appointed to any level of the corresponding salary range. | D26: ARC RESEARCH ASSOCIATE | E26: 08 | F26: =VLOOKUP(A26,'Admin-Salaries'!$A$1:$B$60,2,FALSE)*SalaryOncostsMultiplier*$E$2 -> 138728.2761
A27: Academic A7 | C27: Res. Officer (U Qld) | E27: 07 | F27: =VLOOKUP(A27,'Admin-Salaries'!$A$1:$B$60,2,FALSE)*SalaryOncostsMultiplier*$E$2 -> 134165.7874
A28: Academic A6 | C28: NHMRC Research Assistant | E28: 06** | F28: =VLOOKUP(A28,'Admin-Salaries'!$A$1:$B$60,2,FALSE)*SalaryOncostsMultiplier*$E$2 -> 129601.7942
A29: Academic A5 | C29: Postdoctoral Research Fellows | E29: 05 | F29: =VLOOKUP(A29,'Admin-Salaries'!$A$1:$B$60,2,FALSE)*SalaryOncostsMultiplier*$E$2 -> 125040.4521
A30: Academic A4 | C30: ** Entry level for PhD holders | E30: 04 | F30: =VLOOKUP(A30,'Admin-Salaries'!$A$1:$B$60,2,FALSE)*SalaryOncostsMultiplier*$E$2 -> 120477.3427
A31: Academic A3 | E31: 03 | F31: =VLOOKUP(A31,'Admin-Salaries'!$A$1:$B$60,2,FALSE)*SalaryOncostsMultiplier*$E$2 -> 114860.8083
A32: Academic A2 | E32: 02 | F32: =VLOOKUP(A32,'Admin-Salaries'!$A$1:$B$60,2,FALSE)*SalaryOncostsMultiplier*$E$2 -> 109245.9956
A33: Academic A1 | E33: 01 | F33: =VLOOKUP(A33,'Admin-Salaries'!$A$1:$B$60,2,FALSE)*SalaryOncostsMultiplier*$E$2 -> 103681.6602

Sheet UQ Professional Staff
F2: FTE Fraction (rate per annum); OR | G2: 1
F3: Number of Hours (casual) | G3: 1
D6: The University of Queensland - Professional Staff Salaries
F8: Indicative 2024 Fraction FTE Including 30% On-Costs
D9: HEW Level | E9: Salary Point | F9: Rate per Annum, including 30% On-Costs | G9: Total Cost of Casual by Number of Hours
A10: HEW 1 1 | D10: Level 1 | E10: 01 | F10: =VLOOKUP(A10,'Admin-Salaries'!$A$1:$B$60,2,FALSE)*SalaryOncostsMultiplier*$G$2 -> 76356.51263 | G10: =VLOOKUP(A10,'Admin-Salaries'!$A$1:$B$60,2,FALSE)*CasualLoadingMultiplier*SalaryOncostsCasualMultiplier/'Admin-Other'!$B$22*CASUALHOURS -> 50.46097814
A11: HEW 1 2 | E11: 02 | F11: =VLOOKUP(A11,'Admin-Salaries'!$A$1:$B$60,2,FALSE)*SalaryOncostsMultiplier*$G$2 -> 77933.29806 | G11: =VLOOKUP(A11,'Admin-Salaries'!$A$1:$B$60,2,FALSE)*CasualLoadingMultiplier*SalaryOncostsCasualMultiplier/'Admin-Other'!$B$22*CASUALHOURS -> 51.50301283
A12: HEW 1 3 | E12: 03 | F12: =VLOOKUP(A12,'Admin-Salaries'!$A$1:$B$60,2,FALSE)*SalaryOncostsMultiplier*$G$2 -> 79504.55278 | G12: =VLOOKUP(A12,'Admin-Salaries'!$A$1:$B$60,2,FALSE)*CasualLoadingMultiplier*SalaryOncostsCasualMultiplier/'Admin-Other'!$B$22*CASUALHOURS -> 52.5413925
A13: HEW 2 1 | D13: Level 2 | E13: 01 | F13: =VLOOKUP(A13,'Admin-Salaries'!$A$1:$B$60,2,FALSE)*SalaryOncostsMultiplier*$G$2 -> 81497.20793 | G13: =VLOOKUP(A13,'Admin-Salaries'!$A$1:$B$60,2,FALSE)*CasualLoadingMultiplier*SalaryOncostsCasualMultiplier/'Admin-Other'!$B$22*CASUALHOURS -> 53.85825893
A14: HEW 2 2 | E14: 02 | F14: =VLOOKUP(A14,'Admin-Salaries'!$A$1:$B$60,2,FALSE)*SalaryOncostsMultiplier*$G$2 -> 83455.74943 | G14: =VLOOKUP(A14,'Admin-Salaries'!$A$1:$B$60,2,FALSE)*CasualLoadingMultiplier*SalaryOncostsCasualMultiplier/'Admin-Other'!$B$22*CASUALHOURS -> 55.152581
A15: HEW 3 1 | D15: Level 3 | E15: 01 | F15: =VLOOKUP(A15,'Admin-Salaries'!$A$1:$B$60,2,FALSE)*SalaryOncostsMultiplier*$G$2 -> 85029.73141 | G15: =VLOOKUP(A15,'Admin-Salaries'!$A$1:$B$60,2,FALSE)*CasualLoadingMultiplier*SalaryOncostsCasualMultiplier/'Admin-Other'!$B$22*CASUALHOURS -> 56.19276301
A16: HEW 3 2 | E16: 02 | F16: =VLOOKUP(A16,'Admin-Salaries'!$A$1:$B$60,2,FALSE)*SalaryOncostsMultiplier*$G$2 -> 87953.06935 | G16: =VLOOKUP(A16,'Admin-Salaries'!$A$1:$B$60,2,FALSE)*CasualLoadingMultiplier*SalaryOncostsCasualMultiplier/'Admin-Other'!$B$22*CASUALHOURS -> 58.12468062
A17: HEW 3 3 | E17: 03 | F17: =VLOOKUP(A17,'Admin-Salaries'!$A$1:$B$60,2,FALSE)*SalaryOncostsMultiplier*$G$2 -> 90876.34635 | G17: =VLOOKUP(A17,'Admin-Salaries'!$A$1:$B$60,2,FALSE)*CasualLoadingMultiplier*SalaryOncostsCasualMultiplier/'Admin-Other'!$B$22*CASUALHOURS -> 60.05655796
A18: HEW 3 4 | E18: 04 | F18: =VLOOKUP(A18,'Admin-Salaries'!$A$1:$B$60,2,FALSE)*SalaryOncostsMultiplier*$G$2 -> 93803.59997 | G18: =VLOOKUP(A18,'Admin-Salaries'!$A$1:$B$60,2,FALSE)*CasualLoadingMultiplier*SalaryOncostsCasualMultiplier/'Admin-Other'!$B$22*CASUALHOURS -> 61.9910633
A19: HEW 4 1 | D19: Level 4 | E19: 01 | F19: =VLOOKUP(A19,'Admin-Salaries'!$A$1:$B$60,2,FALSE)*SalaryOncostsMultiplier*$G$2 -> 95905.29999 | G19: =VLOOKUP(A19,'Admin-Salaries'!$A$1:$B$60,2,FALSE)*CasualLoadingMultiplier*SalaryOncostsCasualMultiplier/'Admin-Other'!$B$22*CASUALHOURS -> 63.37999314
A20: HEW 4 2 | E20: 02 | F20: =VLOOKUP(A20,'Admin-Salaries'!$A$1:$B$60,2,FALSE)*SalaryOncostsMultiplier*$G$2 -> 97872.92221 | G20: =VLOOKUP(A20,'Admin-Salaries'!$A$1:$B$60,2,FALSE)*CasualLoadingMultiplier*SalaryOncostsCasualMultiplier/'Admin-Other'!$B$22*CASUALHOURS -> 64.6803163
A21: HEW 4 3 | E21: 03 | F21: =VLOOKUP(A21,'Admin-Salaries'!$A$1:$B$60,2,FALSE)*SalaryOncostsMultiplier*$G$2 -> 99842.09852 | G21: =VLOOKUP(A21,'Admin-Salaries'!$A$1:$B$60,2,FALSE)*CasualLoadingMultiplier*SalaryOncostsCasualMultiplier/'Admin-Other'!$B$22*CASUALHOURS -> 65.98166649
A22: HEW 4 4 | E22: 04 | F22: =VLOOKUP(A22,'Admin-Salaries'!$A$1:$B$60,2,FALSE)*SalaryOncostsMultiplier*$G$2 -> 101811.2443 | G22: =VLOOKUP(A22,'Admin-Salaries'!$A$1:$B$60,2,FALSE)*CasualLoadingMultiplier*SalaryOncostsCasualMultiplier/'Admin-Other'!$B$22*CASUALHOURS -> 67.28299655
A23: HEW 5 1 | D23: Level 5 | E23: 01 | F23: =VLOOKUP(A23,'Admin-Salaries'!$A$1:$B$60,2,FALSE)*SalaryOncostsMultiplier*$G$2 -> 103779.6284 | G23: =VLOOKUP(A23,'Admin-Salaries'!$A$1:$B$60,2,FALSE)*CasualLoadingMultiplier*SalaryOncostsCasualMultiplier/'Admin-Other'!$B$22*CASUALHOURS -> 68.58382316
A24: HEW 5 2 | E24: 02 | F24: =VLOOKUP(A24,'Admin-Salaries'!$A$1:$B$60,2,FALSE)*SalaryOncostsMultiplier*$G$2 -> 107717.2649 | G24: =VLOOKUP(A24,'Admin-Salaries'!$A$1:$B$60,2,FALSE)*CasualLoadingMultiplier*SalaryOncostsCasualMultiplier/'Admin-Other'!$B$22*CASUALHOURS -> 71.18605031
A25: HEW 5 3 | E25: 03 | F25: =VLOOKUP(A25,'Admin-Salaries'!$A$1:$B$60,2,FALSE)*SalaryOncostsMultiplier*$G$2 -> 111650.1477 | G25: =VLOOKUP(A25,'Admin-Salaries'!$A$1:$B$60,2,FALSE)*CasualLoadingMultiplier*SalaryOncostsCasualMultiplier/'Admin-Other'!$B$22*CASUALHOURS -> 73.78513594
A26: HEW 5 4 | E26: 04 | F26: =VLOOKUP(A26,'Admin-Salaries'!$A$1:$B$60,2,FALSE)*SalaryOncostsMultiplier*$G$2 -> 115589.3536 | G26: =VLOOKUP(A26,'Admin-Salaries'!$A$1:$B$60,2,FALSE)*CasualLoadingMultiplier*SalaryOncostsCasualMultiplier/'Admin-Other'!$B$22*CASUALHOURS -> 76.38840019
A27: HEW 6 1 | D27: Level 6 | E27: 01 | F27: =VLOOKUP(A27,'Admin-Salaries'!$A$1:$B$60,2,FALSE)*SalaryOncostsMultiplier*$G$2 -> 118420.4216 | G27: =VLOOKUP(A27,'Admin-Salaries'!$A$1:$B$60,2,FALSE)*CasualLoadingMultiplier*SalaryOncostsCasualMultiplier/'Admin-Other'!$B$22*CASUALHOURS -> 78.2593403
A28: HEW 6 2 | E28: 02 | F28: =VLOOKUP(A28,'Admin-Salaries'!$A$1:$B$60,2,FALSE)*SalaryOncostsMultiplier*$G$2 -> 121345.9688 | G28: =VLOOKUP(A28,'Admin-Salaries'!$A$1:$B$60,2,FALSE)*CasualLoadingMultiplier*SalaryOncostsCasualMultiplier/'Admin-Other'!$B$22*CASUALHOURS -> 80.19271791
A29: HEW 6 3 | E29: 03 | F29: =VLOOKUP(A29,'Admin-Salaries'!$A$1:$B$60,2,FALSE)*SalaryOncostsMultiplier*$G$2 -> 124267.0061 | G29: =VLOOKUP(A29,'Admin-Salaries'!$A$1:$B$60,2,FALSE)*CasualLoadingMultiplier*SalaryOncostsCasualMultiplier/'Admin-Other'!$B$22*CASUALHOURS -> 82.12311512
A30: HEW 6 4 | E30: 04 | F30: =VLOOKUP(A30,'Admin-Salaries'!$A$1:$B$60,2,FALSE)*SalaryOncostsMultiplier*$G$2 -> 127192.5075 | G30: =VLOOKUP(A30,'Admin-Salaries'!$A$1:$B$60,2,FALSE)*CasualLoadingMultiplier*SalaryOncostsCasualMultiplier/'Admin-Other'!$B$22*CASUALHOURS -> 84.05646252
A31: HEW 7 1 | D31: Level 7 | E31: 01 | F31: =VLOOKUP(A31,'Admin-Salaries'!$A$1:$B$60,2,FALSE)*SalaryOncostsMultiplier*$G$2 -> 130116.5463 | G31: =VLOOKUP(A31,'Admin-Salaries'!$A$1:$B$60,2,FALSE)*CasualLoadingMultiplier*SalaryOncostsCasualMultiplier/'Admin-Other'!$B$22*CASUALHOURS -> 85.98884331
A32: HEW 7 2 | E32: 02 | F32: =VLOOKUP(A32,'Admin-Salaries'!$A$1:$B$60,2,FALSE)*SalaryOncostsMultiplier*$G$2 -> 134014.4471 | G32: =VLOOKUP(A32,'Admin-Salaries'!$A$1:$B$60,2,FALSE)*CasualLoadingMultiplier*SalaryOncostsCasualMultiplier/'Admin-Other'!$B$22*CASUALHOURS -> 88.56481066
A33: HEW 7 3 | E33: 03 | F33: =VLOOKUP(A33,'Admin-Salaries'!$A$1:$B$60,2,FALSE)*SalaryOncostsMultiplier*$G$2 -> 137914.6789 | G33: =VLOOKUP(A33,'Admin-Salaries'!$A$1:$B$60,2,FALSE)*CasualLoadingMultiplier*SalaryOncostsCasualMultiplier/'Admin-Other'!$B$22*CASUALHOURS -> 91.14231856
A34: HEW 7 4 | E34: 04 | F34: =VLOOKUP(A34,'Admin-Salaries'!$A$1:$B$60,2,FALSE)*SalaryOncostsMultiplier*$G$2 -> 141873.7724 | G34: =VLOOKUP(A34,'Admin-Salaries'!$A$1:$B$60,2,FALSE)*CasualLoadingMultiplier*SalaryOncostsCasualMultiplier/'Admin-Other'!$B$22*CASUALHOURS -> 93.75872579
A35: HEW 8 1 | D35: Level 8 | E35: 01 | F35: =VLOOKUP(A35,'Admin-Salaries'!$A$1:$B$60,2,FALSE)*SalaryOncostsMultiplier*$G$2 -> 146976.7931 | G35: =VLOOKUP(A35,'Admin-Salaries'!$A$1:$B$60,2,FALSE)*CasualLoadingMultiplier*SalaryOncostsCasualMultiplier/'Admin-Other'!$B$22*CASUALHOURS -> 97.13110891
A36: HEW 8 2 | E36: 02 | F36: =VLOOKUP(A36,'Admin-Salaries'!$A$1:$B$60,2,FALSE)*SalaryOncostsMultiplier*$G$2 -> 152998.3797 | G36: =VLOOKUP(A36,'Admin-Salaries'!$A$1:$B$60,2,FALSE)*CasualLoadingMultiplier*SalaryOncostsCasualMultiplier/'Admin-Other'!$B$22*CASUALHOURS -> 101.1105357
A37: HEW 8 3 | E37: 03 | F37: =VLOOKUP(A37,'Admin-Salaries'!$A$1:$B$60,2,FALSE)*SalaryOncostsMultiplier*$G$2 -> 159013.5685 | G37: =VLOOKUP(A37,'Admin-Salaries'!$A$1:$B$60,2,FALSE)*CasualLoadingMultiplier*SalaryOncostsCasualMultiplier/'Admin-Other'!$B$22*CASUALHOURS -> 105.0857344
A38: HEW 8 4 | E38: 04 | F38: =VLOOKUP(A38,'Admin-Salaries'!$A$1:$B$60,2,FALSE)*SalaryOncostsMultiplier*$G$2 -> 165035.0918 | G38: =VLOOKUP(A38,'Admin-Salaries'!$A$1:$B$60,2,FALSE)*CasualLoadingMultiplier*SalaryOncostsCasualMultiplier/'Admin-Other'!$B$22*CASUALHOURS -> 109.0651193
A39: HEW 9 1 | D39: Level 9 | E39: 01 | F39: =VLOOKUP(A39,'Admin-Salaries'!$A$1:$B$60,2,FALSE)*SalaryOncostsMultiplier*$G$2 -> 172312.9571 | G39: =VLOOKUP(A39,'Admin-Salaries'!$A$1:$B$60,2,FALSE)*CasualLoadingMultiplier*SalaryOncostsCasualMultiplier/'Admin-Other'!$B$22*CASUALHOURS -> 113.8747706
A40: HEW 9 2 | E40: 02 | F40: =VLOOKUP(A40,'Admin-Salaries'!$A$1:$B$60,2,FALSE)*SalaryOncostsMultiplier*$G$2 -> 175522.9687 | G40: =VLOOKUP(A40,'Admin-Salaries'!$A$1:$B$60,2,FALSE)*CasualLoadingMultiplier*SalaryOncostsCasualMultiplier/'Admin-Other'!$B$22*CASUALHOURS -> 115.9961395
A41: HEW 9 3 | E41: 03 | F41: =VLOOKUP(A41,'Admin-Salaries'!$A$1:$B$60,2,FALSE)*SalaryOncostsMultiplier*$G$2 -> 178734.4531 | G41: =VLOOKUP(A41,'Admin-Salaries'!$A$1:$B$60,2,FALSE)*CasualLoadingMultiplier*SalaryOncostsCasualMultiplier/'Admin-Other'!$B$22*CASUALHOURS -> 118.1184816
A42: HEW 9 4 | E42: 04 | F42: =VLOOKUP(A42,'Admin-Salaries'!$A$1:$B$60,2,FALSE)*SalaryOncostsMultiplier*$G$2 -> 182343.3446 | G42: =VLOOKUP(A42,'Admin-Salaries'!$A$1:$B$60,2,FALSE)*CasualLoadingMultiplier*SalaryOncostsCasualMultiplier/'Admin-Other'!$B$22*CASUALHOURS -> 120.5034543

Sheet Salary Gap Calculations
C2: ARC Industry Fellowships 2024 Salary Gap Calculations for UQ applicants
C3: As the DECRA salary and salary on-costs paid by the ARC are at a fixed rate (and the total is less than UQ academic appointment levels), there will be a gap between this and your actual UQ salary. This is to be outlined as a cash commitment in Parts D2, E1 and E3 of the Application, as required by ARC. The level of academic appointment nominated on the signed Application Certification Form will determine the salary gap calculated the Application budget, incremented yearly across the life of the three year award. For example, approximate figures would be calculated as follows:
C4: • A level B01 would have $32,589 in year 1 of the budget as a UQ cash contribution, incrementing to B02 ($37,902) and B03 ($43,214) in years 2 and 3 respectively. • If the nominated level of appointment is at the top of that pay band (e.g. B06) then you may include that salary level each year, with no increments.
C6: Level | D6: Yearly UQ Salary 2024 (including on-costs) | E6: ARC IE24 salary Level (including on-costs) | F6: ARC IE24 Yearly salary gap
C7: D04 | D7: =+'UQ Research Academic Staff'!F10 -> 237116.3389 | E7: 112897 | F7: =D7-E7 -> 124219.3389
C8: D03 | D8: =+'UQ Research Academic Staff'!F11 -> 229820.5629 | E8: 112897 | F8: =D8-E8 -> 116923.5629
C9: D02 | D9: =+'UQ Research Academic Staff'!F12 -> 222523.9159 | E9: 112897 | F9: 109626.9159
C10: D01 | D10: =+'UQ Research Academic Staff'!F13 -> 215228.1715 | E10: 112897 | F10: 102331.1715
C11: C06 | D11: =+'[2]UQ Research Academic Staff'!F14 -> 206108.4397 | E11: 112897 | F11: =+D11-E11 -> 93211.43966
C12: C05 | D12: =+'[2]UQ Research Academic Staff'!F15 -> 200637.5222 | E12: 112897 | F12: 87740.52219
C13: C04 | D13: =+'[2]UQ Research Academic Staff'!F16 -> 195166.5414 | E13: 112897 | F13: 82269.54137
C14: C03 | D14: =+'[2]UQ Research Academic Staff'!F17 -> 189692.8842 | E14: 112897 | F14: 76795.88425
C15: C02 | D15: =+'[2]UQ Research Academic Staff'!F18 -> 184221.9509 | E15: 112897 | F15: 71324.95094
C16: C01 | D16: =+'[2]UQ Research Academic Staff'!F19 -> 178749.2598 | E16: 112897 | F16: 65852.25982
C17: B06 | D17: =+'[2]UQ Research Academic Staff'!F20 -> 173277.4714 | E17: 112897 | F17: 60380.47136
C18: B05 | D18: =+'[2]UQ Research Academic Staff'!F21 -> 167805.5245 | E18: 112897 | F18: 54908.52454
C19: B04 | D19: =+'[2]UQ Research Academic Staff'!F22 -> 162333.7678 | E19: 112897 | F19: 49436.76776
C20: B03 | D20: =+'[2]UQ Research Academic Staff'!F23 -> 156861.916 | E20: 112897 | F20: 43964.91596
C21: B02 | D21: =+'[2]UQ Research Academic Staff'!F24 -> 151390.0325 | E21: 112897 | F21: 38493.03248
C22: B01 | D22: =+'[2]UQ Research Academic Staff'!F25 -> 145918.2757 | E22: 112897 | F22: 33021.27569
C23: A08 | D23: =+'[2]UQ Research Academic Staff'!F26 -> 138728.2761 | E23: 112897 | F23: 25831.27612
C24: A07 | D24: =+'[2]UQ Research Academic Staff'!F27 -> 134165.7874 | E24: 112897 | F24: 21268.78738
C25: A06 | D25: =+'[2]UQ Research Academic Staff'!F28 -> 129601.7942 | E25: 112897 | F25: 16704.79422

Sheet List (hidden)
B2: Dropdown
B3: 1 Year | C3: 0 | D3: N/A
B4: 2 Years | C4: 0 | D4: N/A
B5: 3 Years | C5: 32192 | D5: Earmarked PhD Stipend

Sheet Lists (hidden)
A1: Academic Level
A2: D04
A3: D03
A4: D02
A5: D01
A6: C06
A7: C05
A8: C04
A9: C03
A10: C02
A11: C01
A12: B06
A13: B05
A14: B04
A15: B03
A16: B02
A17: B01
A18: A08
A19: A07
A20: A06

Sheet Salary Gap Calculations (2) (hidden)
C1: ARC Industry Fellowships 2024 Salary Gap Calculations for UQ applicants
C2: As the DECRA salary and salary on-costs paid by the ARC are at a fixed rate (and the total is less than UQ academic appointment levels), there will be a gap between this and your actual UQ salary. This is to be outlined as a cash commitment in Parts D2, E1 and E3 of the Application, as required by ARC. The level of academic appointment nominated on the signed Application Certification Form will determine the salary gap calculated the Application budget, incremented yearly across the life of the three year award. For example, approximate figures would be calculated as follows:
C3: • A level B01 would have $32,589 in year 1 of the budget as a UQ cash contribution, incrementing to B02 ($37,902) and B03 ($43,214) in years 2 and 3 respectively. • If the nominated level of appointment is at the top of that pay band (e.g. B06) then you may include that salary level each year, with no increments.
C5: Level | D5: Yearly UQ Salary 2024 (including on-costs) | E5: ARC IE24 salary Level (including on-costs) | F5: ARC IE24 Yearly salary gap | G5: ARC IM24 salary Level (including on-costs) | H5: ARC IM24 Yearly salary gap | I5: ARC IL24 salary Level (including on-costs) | J5: ARC IL24 Yearly salary gap
C6: E01 | D6: =+'UQ Research Academic Staff'!F9 -> 277243.7166 | E6: 109079 | F6: =+D6-E6 -> 168164.7166 | G6: 199824 | H6: =+D6-G6 -> 77419.71664 | I6: 173758 | J6: =+D6-I6 -> 103485.7166
C7: D04 | D7: =+'UQ Research Academic Staff'!F10 -> 237116.3389 | E7: 109079 | F7: =+D7-E7 -> 128037.3389 | G7: 199824 | H7: 37292.33889 | I7: 173758 | J7: =+D7-I7 -> 63358.33889
C8: D03 | D8: =+'UQ Research Academic Staff'!F11 -> 229820.5629 | E8: 109079 | F8: 120741.5629 | G8: 199824 | H8: 29996.56288 | I8: 173758 | J8: =+D8-I8 -> 56062.56288
C9: D02 | D9: =+'UQ Research Academic Staff'!F12 -> 222523.9159 | E9: 109079 | F9: 113444.9159 | G9: 199824 | H9: 22699.91589 | I9: 173758 | J9: 48765.91589
C10: D01 | D10: =+'UQ Research Academic Staff'!F13 -> 215228.1715 | E10: 109079 | F10: 106149.1715 | G10: 199824 | H10: 15404.17155 | I10: 173758 | J10: 41470.17155
C11: C06 | D11: =+'UQ Research Academic Staff'!F14 -> 206108.4397 | E11: 109079 | F11: 97029.43966 | G11: 199824 | H11: 6284.439658 | I11: 173758 | J11: 32350.43966
C12: C05 | D12: =+'UQ Research Academic Staff'!F15 -> 200637.5222 | E12: 109079 | F12: 91558.52219 | G12: 199824 | H12: 813.5221853 | I12: 173758 | J12: 26879.52219
C13: C04 | D13: =+'UQ Research Academic Staff'!F16 -> 195166.5414 | E13: 109079 | F13: 86087.54137 | G13: 199824 | H13: -4657.458632 | I13: 173758 | J13: 21408.54137
C14: C03 | D14: =+'UQ Research Academic Staff'!F17 -> 189692.8842 | E14: 109079 | F14: 80613.88425 | G14: 199824 | H14: -10131.11575 | I14: 173758 | J14: 15934.88425
C15: C02 | D15: =+'UQ Research Academic Staff'!F18 -> 184221.9509 | E15: 109079 | F15: 75142.95094 | G15: 199824 | H15: -15602.04906 | I15: 173758 | J15: 10463.95094
C16: C01 | D16: =+'UQ Research Academic Staff'!F19 -> 178749.2598 | E16: 109079 | F16: 69670.25982 | G16: 199824 | H16: -21074.74018 | I16: 173758 | J16: 4991.259823
C17: B06 | D17: =+'UQ Research Academic Staff'!F20 -> 173277.4714 | E17: 109079 | F17: 64198.47136 | G17: 199824 | H17: -26546.52864 | I17: 173758 | J17: -480.5286354
C18: B05 | D18: =+'UQ Research Academic Staff'!F21 -> 167805.5245 | E18: 109079 | F18: 58726.52454 | G18: 199824 | H18: -32018.47546 | I18: 173758 | J18: -5952.475455
C19: B04 | D19: =+'UQ Research Academic Staff'!F22 -> 162333.7678 | E19: 109079 | F19: 53254.76776 | G19: 199824 | H19: -37490.23224 | I19: 173758 | J19: -11424.23224
C20: B03 | D20: =+'UQ Research Academic Staff'!F23 -> 156861.916 | E20: 109079 | F20: 47782.91596 | G20: 199824 | H20: -42962.08404 | I20: 173758 | J20: -16896.08404
C21: B02 | D21: =+'UQ Research Academic Staff'!F24 -> 151390.0325 | E21: 109079 | F21: 42311.03248 | G21: 199824 | H21: -48433.96752 | I21: 173758 | J21: -22367.96752
C22: B01 | D22: =+'UQ Research Academic Staff'!F25 -> 145918.2757 | E22: 109079 | F22: 36839.27569 | G22: 199824 | H22: -53905.72431 | I22: 173758 | J22: -27839.72431
C23: A08 | D23: =+'UQ Research Academic Staff'!F26 -> 138728.2761 | E23: 109079 | F23: 29649.27612 | G23: 199824 | H23: -61095.72388 | I23: 173758 | J23: -35029.72388
C24: A07 | D24: =+'UQ Research Academic Staff'!F27 -> 134165.7874 | E24: 109079 | F24: 25086.78738 | G24: 199824 | H24: -65658.21262 | I24: 173758 | J24: -39592.21262
C25: A06 | D25: =+'UQ Research Academic Staff'!F28 -> 129601.7942 | E25: 109079 | F25: 20522.79422 | G25: 199824 | H25: -70222.20578 | I25: 173758 | J25: -44156.20578

Sheet Admin-Salaries (hidden)
A1: BaseSalary | B1: 2024 | C1: 2025 | D1: 2026
A2: HDR Stipend | B2: 33383.104 | C2: =B2*(100%+3.7%) -> 34618.27885 | D2: =C2*(100%+3.7%) -> 35899.15517 | F2: RTP website | G2: Refer to the latest HDR Stipend rate from RTP website, use 2% increase for stipend estimate from 2023 onwards
A3: Academic E1 | B3: 213264.3974 | C3: =B3*(100%+3.7%) -> 221155.1801 | D3: 229337.9218
A4: Academic D4 | B4: 182397.1838 | C4: 189145.8796 | D4: 196144.2771 | F4: Wage Indexation rate in Finance Workbook | G4: Indexation for Calendar Year
A5: Academic D3 | B5: 176785.0484 | C5: 183326.0952 | D5: 190109.1607 | G5: 2023 | H5: 2024 | I5: 2025 | J5: 2026 | K5: 2027 onwards
A6: Academic D2 | B6: 171172.243 | C6: 177505.616 | D6: 184073.3238 | G6: 0.035 | H6: 0.037 | I6: 0.037 | J6: 0.037 | K6: 0.02
A7: Academic D1 | B7: 165560.132 | C7: 171685.8568 | D7: 178038.2335
A8: Academic C6 | B8: 158544.9536 | C8: 164411.1169 | D8: 170494.3282
A9: Academic C5 | B9: 154336.5555 | C9: 160047.0081 | D9: 165968.7474
A10: Academic C4 | B10: 150128.1087 | C10: 155682.8488 | D10: 161443.1142
A11: Academic C3 | B11: 145917.6033 | C11: 151316.5546 | D11: 156915.2671
A12: Academic C2 | B12: 141709.193 | C12: 146952.4332 | D12: 152389.6732
A13: Academic C1 | B13: 137499.4306 | C13: 142586.9096 | D13: 147862.6252
A14: Academic B6 | B14: 133290.3626 | C14: 138222.106 | D14: 143336.3239
A15: Academic B5 | B15: 129081.1727 | C15: 133857.1761 | D15: 138809.8916
A16: Academic B4 | B16: 124872.129 | C16: 129492.3978 | D16: 134283.6165
A17: Academic B3 | B17: 120663.0123 | C17: 125127.5437 | D17: 129757.2628
A18: Academic B2 | B18: 116453.8711 | C18: 120762.6644 | D18: 125230.883
A19: Academic B1 | B19: 112244.8275 | C19: 116397.8861 | D19: 120704.6079
A20: Academic A8 | B20: 106714.0586 | C20: 110662.4787 | D20: 114756.9904
A21: Academic A7 | B21: 103204.4518 | C21: 107023.0165 | D21: 110982.8682
A22: Academic A6 | B22: 99693.68786 | C22: 103382.3543 | D22: 107207.5014
A23: Academic A5 | B23: 96184.96319 | C23: 99743.80683 | D23: 103434.3277
A24: Academic A4 | B24: 92674.87899 | C24: 96103.84951 | D24: 99659.69194
A25: Academic A3 | B25: 88354.46793 | C25: 91623.58324 | D25: 95013.65582
A26: Academic A2 | B26: 84035.38124 | C26: 87144.69035 | D26: 90369.04389
A27: Academic A1 | B27: 79755.1232 | C27: 82706.06276 | D27: 85766.18708
A28: HEW 9 4 | B28: 140264.1113 | C28: 145453.8834 | D28: 150835.6771
A29: HEW 9 3 | B29: 137488.0408 | C29: 142575.0983 | D29: 147850.377
A30: HEW 9 2 | B30: 135017.6682 | C30: 140013.322 | D30: 145193.8149
A31: HEW 9 1 | B31: 132548.4286 | C31: 137452.7204 | D31: 142538.4711
A32: HEW 8 4 | B32: 126950.0706 | C32: 131647.2232 | D32: 136518.1705
A33: HEW 8 3 | B33: 122318.1296 | C33: 126843.9004 | D33: 131537.1247
A34: HEW 8 2 | B34: 117691.0613 | C34: 122045.6306 | D34: 126561.3189
A35: HEW 8 1 | B35: 113059.0716 | C35: 117242.2573 | D35: 121580.2208
A36: HEW 7 4 | B36: 109133.6711 | C36: 113171.6169 | D36: 117358.9668
A37: HEW 7 3 | B37: 106088.2145 | C37: 110013.4785 | D37: 114083.9772
A38: HEW 7 2 | B38: 103088.0362 | C38: 106902.2935 | D38: 110857.6784
A39: HEW 7 1 | B39: 100089.651 | C39: 103792.9681 | D39: 107633.3079
A40: HEW 6 4 | B40: 97840.39041 | C40: 101460.4849 | D40: 105214.5228
A41: HEW 6 3 | B41: 95590.00466 | C41: 99126.83484 | D41: 102794.5277
A42: HEW 6 2 | B42: 93343.0529 | C42: 96796.74586 | D42: 100378.2255
A43: HEW 6 1 | B43: 91092.632 | C43: 94463.05939 | D43: 97958.19258
A44: HEW 5 4 | B44: 88914.88736 | C44: 92204.73819 | D44: 95616.31351
A45: HEW 5 3 | B45: 85884.72903 | C45: 89062.464 | D45: 92357.77517
A46: HEW 5 2 | B46: 82859.43453 | C46: 85925.23361 | D46: 89104.46725
A47: HEW 5 1 | B47: 79830.48337 | C47: 82784.21125 | D47: 85847.22707
A48: HEW 4 4 | B48: 78316.34181 | C48: 81214.04645 | D48: 84218.96617
A49: HEW 4 3 | B49: 76801.61424 | C49: 79643.27397 | D49: 82590.07511
A50: HEW 4 2 | B50: 75286.86324 | C50: 78072.47718 | D50: 80961.15883
A51: HEW 4 1 | B51: 73773.30768 | C51: 76502.92007 | D51: 79333.52811
A52: HEW 3 4 | B52: 72156.61536 | C52: 74826.41013 | D52: 77594.9873
A53: HEW 3 3 | B53: 69904.8818 | C53: 72491.36243 | D53: 75173.54284
A54: HEW 3 2 | B54: 67656.20719 | C54: 70159.48686 | D54: 72755.38787
A55: HEW 3 1 | B55: 65407.4857 | C55: 67827.56267 | D55: 70337.18249
A56: HEW 2 2 | B56: 64196.73033 | C56: 66572.00935 | D56: 69035.1737
A57: HEW 2 1 | B57: 62690.15995 | C57: 65009.69587 | D57: 67415.05461
A58: HEW 1 3 | B58: 61157.34829 | C58: 63420.17018 | D58: 65766.71647
A59: HEW 1 2 | B59: 59948.69081 | C59: 62166.79237 | D59: 64466.96369
A60: HEW 1 1 | B60: 58735.77895 | C60: 60909.00277 | D60: 63162.63587

Sheet Admin-Other (hidden)
A3: Data Entry | H3: UQ Standard Salary Oncosts
A4: Type | B4: Cost,In Kind Support,Outgoing Payment,Direct Cost w Indirect Cost as In Kind Support
A5: People Categories | B5: Personnel,Personnel - HDR | H5: Non-Casual
A6: Other Categories | B6: Consumables,Equipment,Travel - Domestic,Travel - International,Hospitality,Collaborator Payments,Subcontracts,Other | H6: Payroll Tax | I6: NonCasualPRT | J6: 0.057
A7: Cash Categories | B7: UQ Central Cash Support,UQ Faculty Cash Support,UQ School Cash Support,Other Cash Support | H7: Workers Compensation | I7: NonCasualWC | J7: 0.002
H8: Superannuation | I8: NonCasualSuper | J8: 0.17
H9: PRT on Superannuation | I9: NonCasualPRTSuper | J9: 0.00969
B10: Default Overheads | D10: Default Markup | H10: Long Service Leave | I10: NonCasualLSL | J10: 0.0244
B11: Research | C11: Consultancy | D11: Research | E11: Consultancy | H11: Recreation Leave | I11: NonCasualRec | J11: 0.015
A12: HDR | H12: Parental Leave | I12: NonCasualParent | J12: 0.0107
A13: Outgoing Payment | B13: 0.4 | C13: 0.4 | J13: =SUM(J6:J12) -> 0.28879
A14: Personnel | B14: 0.4 | C14: 0.4 | E14: 0.428571429
A15: Else (including In Kind) | B15: 0.4 | C15: 0.4 | H15: Casual
H16: Payroll Tax | I16: CasualPRT | J16: 0.057
A17: Unit Of Pay Calculators | H17: Workers Compensation | I17: CasualWC | J17: 0.002
A18: UnitsOfPay | B18: Time Divisor | C18: CasualLoading | D18: OncostMultiplier | H18: Superannuation | I18: CasualSuper | J18: 0.105
A19: Annual Salary | B19: 1 | D19: 1.3 | H19: PRT on Superannuation | I19: CasualPRTSuper | J19: 0.005985
A20: Days | B20: 260.893 | D20: 1.3 | H20: Long Service Leave | I20: -
A21: Hours | B21: 1891.47425 | D21: 1.3 | H21: Recreation Leave | I21: -
A22: Casual Hours | B22: 1891.47425 | C22: 1.25 | D22: 1.3 | H22: Parental Leave | I22: -
D23: nb. OnCosts are dependant on OncostsExemption Input | J23: =SUM(J16:J22) -> 0.169985
